{"text_format":"1","workbook":"xlsx","n_sheets":4,"sheets":["Annual Summaries","Sheet2","Resource Request Rank","Sheet4"],"not_rendered":{"charts":0,"images":0,"macros":1,"external_links":0,"defined_names":2,"comments":0,"pivot_tables":1},"unopened":[],"bounds":{"document_bytes":16777216,"sheet_cells":100000,"rows_first":2000,"rows_last":500,"rows_between":2000,"halvings":0,"cell_chars":16384,"cell_head_chars":4096},"cells_cut":0,"cells_raw":0,"read":"whole","date_system":"1900"}

{"sheet":"Annual Summaries","index":0,"n_rows":13,"n_cols":4,"rows_kept":13,"cut":false,"hidden":false,"merged":[]}
["Program","Program Information:","Program Data and Updates:","Resource Requests"]
["Athletics Abbreviated ","Summary: Exemplary: The program information demonstrates mission alignment with the college, includes substantial and specific examples and is clear and concise.","Summary: Exemplary/Satisfactory: Data and Updates are complete and insightful. The details of student success such as retention and course success rate are discussed. Student achievement is identified (graduation, GPA, retention) and compared to district or previous levels—what impacts these achievements is not explicitly articulated which could improve analysis. We applaud them for their major fundraising efforts.","Summary: Exemplary: clearly tied to previous sections."]
["Auto Tech Abbreviated ","Summary: Satisfactory-Lots of great student opportunities.  Clear and concise information.  Needs to provide more language to align with the college mission. The review briefly provides relevant details about how the program impacts the college and community or service areas.","Summary: Satisfactory Factors impacting student achievement and learning are clearly stated; Discussion of data is complete and some comparative comments regarding program or discipline changes are present;. Needs some student equity data.","N/A"]
["Basic Needs Abbreviated ","Summary: Exemplary: Program mission clearly aligns with the mission of the college. Substantial and specific examples included. Clear and concise. It’s fantastic that the program was able to offer students help directly instead of referring them elsewhere for housing needs/aid. Reviewers appreciate in particular the program’s reference to EMP initiatives and California Education Code of Regulations to demonstrate how the program’s work supports the college’s mission. Ditto for the representation of student perspectives. If comparative analysis was done regarding the communication degree for transfer data, then it would be beneficial to include the data analyzed for increased clarity in this section of the report.","Summary: Exemplary: Data and updates are complete and insightful; commentary was given regarding factors that may have contributed to program or discipline changes. Factors impacting student achievement and learning are described in detail. Student equity data is thoroughly discussed. The student equity data here is as substantial as reviewers have seen from any student-centered program and the interpretation of that data is clear. The conclusions/updates to program plans that the program comes to based on the available data are also clearly justified.  ","N/A"]
["Bus Office Abbreviated ","Summary: Satisfactory: The program mission and details are well-defined, with examples that are both specific and clear in illustrating the program’s primary functions. Reviewers noted that the program mission should be articulated in a way such that it aligns more directly with the college’s mission and the program could stand to explain more thoroughly how its work meets the diverse needs of students as the education environment continues to evolve. ","Summary: Developing: There is an absence of data points or comparative analysis regarding program/discipline changes in the Data Highlights section and in the Updates to Program Plans section (for example, why is the process for switching to a more user-friendly method for Cal Cards, etc taking longer than expected?). Student Equity data or impact is not discussed. ","N/A"]
["Dental Abbreviated ","Summary: Satisfactory: Program mission aligns with the mission of the college. Substantial and specific examples included. Clear and concise. The program summary and the accomplishments section speak substantially to how the program is meeting enrollment/completion/job placement goals which align with the mission of the college, but the program could stand to clarify that alignment rather than leaving it mostly implied. This can easily be accomplished by quoting or directly referencing parts of the mission statement followed by how the program explicitly supports that section of the mission. The program could explain more clearly the nature of the Dental Health Center and what services it provides. ","Summary: Satisfactory: Data and updates are complete and some comparative comments regarding program or discipline changes are present. Factors impacting student achievement and   learning are clearly stated. Student equity data is discussed briefly. The success and retention rate of the program with regard to gender, ethnicity, and first year college demographics is particularly impressive and I would have liked to see the program dig into that data more thoroughly. Reviewers encourage the program to reach out to the Institutional Research Office for help with data collection/analysis and summarizing that analysis in the program review narrative in the “Program Data and Updates” section.","N/A"]
["Distance Ed Abbreviated ","Summary: Satisfactory/Developing- Program mission needs more clarification about how it aligns with the mission of the college. The review requires more relevant details about how the program impacts the college and community or service areas. Relevant details are provided about how the program impacts the college and community or service areas with some examples included. Please explain just how important DE is to the District given that just over 50% of CR students take at least one online course.","Summary: Exemplary- DE plan includes detailed plan and discussion. Discussion of data is complete and insightful; commentary was given regarding factors that may have contributed to program or discipline changes; Factors impacting student achievement and learning are described in detail; Student equity data is thoroughly discussed.","N/A"]
["Fine Arts Abbreviated ","Summary: Developing - It does provide one example of support for the college mission but is missing content that could support overall objectives. To the author, please look in each section with the thought that the reader knows little about the program.","Summary: Developing - This section is completely blank.","Summary: Developing – No recorded consultation has taken place; requests are not linked to program or institutional plans. Math does not add up for the equipment purchase."]
["FNR Abbreviated ","Summary: Exemplary - Many relevant and current examples of how relevant and vital the FNR program is to the mission and how it supports students both in careers and transfer opportunities for students. Lots of significant examples of accomplishments that tie directly to their goals and initiatives. AS degree receives national highlight as well as finding students who earned their Certificate of Achievement, but auto awarding didn’t give it to them.","Summary: Developing: This area had many notable examples of data and detailed updates. The authors simply used the wrong template and thus a review of development was given based on the rubric. ","Summary: All resource requests are related to the mission, institutional goals and assessment data reported on"]
["Physical Science Abbreviated ","Summary: Developing/not present: this section was not filled out.","Summary: Developing/Satisfactory: Overall, the information shared was useful. This document is not complete; however, the analysis seems effective. This could be improved by providing more detail and filling out area 2.0 Program Data Highlights (which was blank).  Outcomes are compared with one another. There is a clearly articulated interest in student equity in the first two plans; specifically for inclusivity and equity across modality. The plans of Physical Science are mapped to the Education Master Plan.","Summary: Exemplary/Satisfactory: resource requests are clearly linked to the plan/have been consultation."]
["RN Abbreviated ","Summary: Exemplary – The mission of the program clearly aligns with District Mission, demonstrating a strong impact on both the community and the institution. Program functions include detailed and specific examples.","Summary: Satisfactory- Program data points, highlights, and planning updates are complete regarding the program's improvement. Factors impacting student achievement and learning are clearly stated. Reviewers noted that it would have been helpful for the program to spend more time analyzing and discussing student equity data as it concerns the program’s development and planning process; it is clear that the program is meaningfully addressing issues related to student equity but program updates are currently not framed explicitly in terms of student equity.","N/A"]
["WCE Abbreviated ","Summary: Exemplary – Mission clearly aligns with institutional goals and EMP. Several examples of that alignment were provided as well strong examples of accomplishments with relevant data.","Summary: Satisfactory: Multiple strong examples provided, good use of data. This committee appreciates the move towards more data-driven decision making. Need to see a specific plan that the resource request in the next section is clearly linked to.  Need to take section 2.1 with the updates to program plans, goals, and assessment and directly tie it to the resource request.","Summary: Satisfactory/Developing - Would like to see the request linked to planning, both within the program and at the district level. "]
["Welding Abbreviated ","Summary: Exemplary/Satisfactory: Program mission aligns with the mission of the college. Some examples included. Clear and concise. Identifying the specific part of the mission statement that your program supports would help strengthen this part of the report. Great accomplishments section.","Summary: Exemplary: Data and updates are complete and insightful; commentary was given regarding factors that may have contributed to program or discipline changes; Factors impacting student achievement and learning are described in detail; Student equity data is thoroughly discussed.","N/A"]

{"sheet":"Sheet2","index":1,"n_rows":646,"n_cols":7,"rows_kept":646,"cut":false,"hidden":true,"merged":[]}
["Criteria","R1","R2","R3","Avg ","Program","Request # and Description"]
["Reviewer","Elder","Haley",null,null,"Athletics Abbreviated Feedback Template 2024-25.docx","Request 1: 2-4 Large passenger vans\r"]
["Alignment with an Institutional Goal or Institutional Objective (0***3)","3","3",null,null,"Athletics Abbreviated Feedback Template 2024-25.docx","Request 1: 2-4 Large passenger vans\r"]
["Identified as a need based on assessment outcome(s) (0***3)","3","3",null,null,"Athletics Abbreviated Feedback Template 2024-25.docx","Request 1: 2-4 Large passenger vans\r"]
["Number of students affected (0***3)","3","3",null,null,"Athletics Abbreviated Feedback Template 2024-25.docx","Request 1: 2-4 Large passenger vans\r"]
["Meets a safety or legislated mandate (0***3)","3","3",null,null,"Athletics Abbreviated Feedback Template 2024-25.docx","Request 1: 2-4 Large passenger vans\r"]
["Criticality of the request (0***3)","3","3",null,null,"Athletics Abbreviated Feedback Template 2024-25.docx","Request 1: 2-4 Large passenger vans\r"]
["Total (0***15)","15","15",null,{"$f":"(15+15)/2","v":15},"Athletics Abbreviated Feedback Template 2024-25.docx","Request 1: 2-4 Large passenger vans\r"]
["Average:","15",null,null,null,"Athletics Abbreviated Feedback Template 2024-25.docx","Request 1: 2-4 Large passenger vans\r"]
[null,null,null,null,null,"Athletics Abbreviated Feedback Template 2024-25.docx","Request 1: 2-4 Large passenger vans\r"]
[null,null,null,null,null,"Athletics Abbreviated Feedback Template 2024-25.docx","Request 1: 2-4 Large passenger vans\r"]
[null,null,null,null,null,"Athletics Abbreviated Feedback Template 2024-25.docx","Request 1: 2-4 Large passenger vans\r"]
[null,null,null,null,null,"Athletics Abbreviated Feedback Template 2024-25.docx","Request 1: 2-4 Large passenger vans\r"]
["Reviewer","Elder","Haley",null,null,"Athletics Abbreviated Feedback Template 2024-25.docx","Request 2: 50-60 passenger bus\r"]
["Alignment with an Institutional Goal or Institutional Objective (0***3)",3,3,null,null,"Athletics Abbreviated Feedback Template 2024-25.docx","Request 2: 50-60 passenger bus\r"]
["Identified as a need based on assessment outcome(s) (0***3)",3,3,null,null,"Athletics Abbreviated Feedback Template 2024-25.docx","Request 2: 50-60 passenger bus\r"]
["Number of students affected (0***3)",3,3,null,null,"Athletics Abbreviated Feedback Template 2024-25.docx","Request 2: 50-60 passenger bus\r"]
["Meets a safety or legislated mandate (0***3)",3,3,null,null,"Athletics Abbreviated Feedback Template 2024-25.docx","Request 2: 50-60 passenger bus\r"]
["Criticality of the request (0***3)",3,3,null,null,"Athletics Abbreviated Feedback Template 2024-25.docx","Request 2: 50-60 passenger bus\r"]
["Total (0***15)",15,15,null,{"$f":"AVERAGE(B20:D20)","v":15},"Athletics Abbreviated Feedback Template 2024-25.docx","Request 2: 50-60 passenger bus\r"]
["Average:",15,null,null,null,"Athletics Abbreviated Feedback Template 2024-25.docx","Request 2: 50-60 passenger bus\r"]
[null,null,null,null,null,"Athletics Abbreviated Feedback Template 2024-25.docx","Request 2: 50-60 passenger bus\r"]
[null,null,null,null,null,"Athletics Abbreviated Feedback Template 2024-25.docx","Request 2: 50-60 passenger bus\r"]
[null,null,null,null,null,"Athletics Abbreviated Feedback Template 2024-25.docx","Request 2: 50-60 passenger bus\r"]
[null,null,null,null,null,"Athletics Abbreviated Feedback Template 2024-25.docx","Request 2: 50-60 passenger bus\r"]
["Reviewer","Elder","Haley",null,null,"Athletics Abbreviated Feedback Template 2024-25.docx","Request 3: Track Field Equipment\r"]
["Alignment with an Institutional Goal or Institutional Objective (0***3)",3,3,null,null,"Athletics Abbreviated Feedback Template 2024-25.docx","Request 3: Track Field Equipment\r"]
["Identified as a need based on assessment outcome(s) (0***3)",2,2,null,null,"Athletics Abbreviated Feedback Template 2024-25.docx","Request 3: Track Field Equipment\r"]
["Number of students affected (0***3)",3,3,null,null,"Athletics Abbreviated Feedback Template 2024-25.docx","Request 3: Track Field Equipment\r"]
["Meets a safety or legislated mandate (0***3)",0,1,null,null,"Athletics Abbreviated Feedback Template 2024-25.docx","Request 3: Track Field Equipment\r"]
["Criticality of the request (0***3)",2,1,null,null,"Athletics Abbreviated Feedback Template 2024-25.docx","Request 3: Track Field Equipment\r"]
["Total (0***15)",10,10,null,{"$f":"AVERAGE(B32:D32)","v":10},"Athletics Abbreviated Feedback Template 2024-25.docx","Request 3: Track Field Equipment\r"]
["Average:",10,null,null,null,"Athletics Abbreviated Feedback Template 2024-25.docx","Request 3: Track Field Equipment\r"]
[null,null,null,null,null,"Athletics Abbreviated Feedback Template 2024-25.docx","Request 3: Track Field Equipment\r"]
[null,null,null,null,null,"Athletics Abbreviated Feedback Template 2024-25.docx","Request 3: Track Field Equipment\r"]
[null,null,null,null,null,"Athletics Abbreviated Feedback Template 2024-25.docx","Request 3: Track Field Equipment\r"]
[null,null,null,null,null,"Athletics Abbreviated Feedback Template 2024-25.docx","Request 3: Track Field Equipment\r"]
["Reviewer","Elder","Haley",null,null,"Athletics Abbreviated Feedback Template 2024-25.docx","\u000bRequest 4: Hudl Film share / stats\r"]
["Alignment with an Institutional Goal or Institutional Objective (0***3)",3,3,null,null,"Athletics Abbreviated Feedback Template 2024-25.docx","\u000bRequest 4: Hudl Film share / stats\r"]
["Identified as a need based on assessment outcome(s) (0***3)",3,2,null,null,"Athletics Abbreviated Feedback Template 2024-25.docx","\u000bRequest 4: Hudl Film share / stats\r"]
["Number of students affected (0***3)",3,3,null,null,"Athletics Abbreviated Feedback Template 2024-25.docx","\u000bRequest 4: Hudl Film share / stats\r"]
["Meets a safety or legislated mandate (0***3)",3,3,null,null,"Athletics Abbreviated Feedback Template 2024-25.docx","\u000bRequest 4: Hudl Film share / stats\r"]
["Criticality of the request (0***3)",2,3,null,null,"Athletics Abbreviated Feedback Template 2024-25.docx","\u000bRequest 4: Hudl Film share / stats\r"]
["Total (0***15)",14,14,null,{"$f":"AVERAGE(B44:D44)","v":14},"Athletics Abbreviated Feedback Template 2024-25.docx","\u000bRequest 4: Hudl Film share / stats\r"]
["Average:",14,null,null,null,"Athletics Abbreviated Feedback Template 2024-25.docx","\u000bRequest 4: Hudl Film share / stats\r"]
[null,null,null,null,null,"Athletics Abbreviated Feedback Template 2024-25.docx","\u000bRequest 4: Hudl Film share / stats\r"]
[null,null,null,null,null,"Athletics Abbreviated Feedback Template 2024-25.docx","\u000bRequest 4: Hudl Film share / stats\r"]
[null,null,null,null,null,"Athletics Abbreviated Feedback Template 2024-25.docx","\u000bRequest 4: Hudl Film share / stats\r"]
[null,null,null,null,null,"Athletics Abbreviated Feedback Template 2024-25.docx","\u000bRequest 4: Hudl Film share / stats\r"]
["Reviewer","Elder","Haley",null,null,"Athletics Abbreviated Feedback Template 2024-25.docx","Request 5: Athletic website upgrades\r"]
["Alignment with an Institutional Goal or Institutional Objective (0***3)",2,3,null,null,"Athletics Abbreviated Feedback Template 2024-25.docx","Request 5: Athletic website upgrades\r"]
["Identified as a need based on assessment outcome(s) (0***3)",0,0,null,null,"Athletics Abbreviated Feedback Template 2024-25.docx","Request 5: Athletic website upgrades\r"]
["Number of students affected (0***3)",3,3,null,null,"Athletics Abbreviated Feedback Template 2024-25.docx","Request 5: Athletic website upgrades\r"]
["Meets a safety or legislated mandate (0***3)",0,0,null,null,"Athletics Abbreviated Feedback Template 2024-25.docx","Request 5: Athletic website upgrades\r"]
["Criticality of the request (0***3)0",2,2,null,null,"Athletics Abbreviated Feedback Template 2024-25.docx","Request 5: Athletic website upgrades\r"]
["Total (0***15)",7,8,null,{"$f":"AVERAGE(B56:D56)","v":7.5},"Athletics Abbreviated Feedback Template 2024-25.docx","Request 5: Athletic website upgrades\r"]
["Average:",7.5,null,null,null,"Athletics Abbreviated Feedback Template 2024-25.docx","Request 5: Athletic website upgrades\r"]
[null,null,null,null,null,"Athletics Abbreviated Feedback Template 2024-25.docx","Request 5: Athletic website upgrades\r"]
[null,null,null,null,null,"Athletics Abbreviated Feedback Template 2024-25.docx","Request 5: Athletic website upgrades\r"]
[null,null,null,null,null,"Athletics Abbreviated Feedback Template 2024-25.docx","Request 5: Athletic website upgrades\r"]
[null,null,null,null,null,"Athletics Abbreviated Feedback Template 2024-25.docx","Request 5: Athletic website upgrades\r"]
["Reviewer","Amy","Misty",null,null,"Auto Tech Abbreviated Feedback Template 2024-25.docx","Request 1: (I’m adding up all the equipment costs here) Alignment machine** Battery lift** inspection harness** used engines** etc at $97**203.43 one-time costs\r"]
["Alignment with an Institutional Goal or Institutional Objective (0***3)",3,3,null,null,"Auto Tech Abbreviated Feedback Template 2024-25.docx","Request 1: (I’m adding up all the equipment costs here) Alignment machine** Battery lift** inspection harness** used engines** etc at $97**203.43 one-time costs\r"]
["Identified as a need based on assessment outcome(s) (0***3)",3,3,null,null,"Auto Tech Abbreviated Feedback Template 2024-25.docx","Request 1: (I’m adding up all the equipment costs here) Alignment machine** Battery lift** inspection harness** used engines** etc at $97**203.43 one-time costs\r"]
["Number of students affected (0***3)",3,2,null,null,"Auto Tech Abbreviated Feedback Template 2024-25.docx","Request 1: (I’m adding up all the equipment costs here) Alignment machine** Battery lift** inspection harness** used engines** etc at $97**203.43 one-time costs\r"]
["Meets a safety or legislated mandate (0***3)",2,2,null,null,"Auto Tech Abbreviated Feedback Template 2024-25.docx","Request 1: (I’m adding up all the equipment costs here) Alignment machine** Battery lift** inspection harness** used engines** etc at $97**203.43 one-time costs\r"]
["Criticality of the request (0***3)",3,3,null,null,"Auto Tech Abbreviated Feedback Template 2024-25.docx","Request 1: (I’m adding up all the equipment costs here) Alignment machine** Battery lift** inspection harness** used engines** etc at $97**203.43 one-time costs\r"]
["Total (0***15)",14,13,null,{"$f":"AVERAGE(B68:D68)","v":13.5},"Auto Tech Abbreviated Feedback Template 2024-25.docx","Request 1: (I’m adding up all the equipment costs here) Alignment machine** Battery lift** inspection harness** used engines** etc at $97**203.43 one-time costs\r"]
["Average:",13.5,null,null,null,"Auto Tech Abbreviated Feedback Template 2024-25.docx","Request 1: (I’m adding up all the equipment costs here) Alignment machine** Battery lift** inspection harness** used engines** etc at $97**203.43 one-time costs\r"]
[null,null,null,null,null,"Auto Tech Abbreviated Feedback Template 2024-25.docx","Request 1: (I’m adding up all the equipment costs here) Alignment machine** Battery lift** inspection harness** used engines** etc at $97**203.43 one-time costs\r"]
[null,null,null,null,null,"Auto Tech Abbreviated Feedback Template 2024-25.docx","Request 1: (I’m adding up all the equipment costs here) Alignment machine** Battery lift** inspection harness** used engines** etc at $97**203.43 one-time costs\r"]
[null,null,null,null,null,"Auto Tech Abbreviated Feedback Template 2024-25.docx","Request 1: (I’m adding up all the equipment costs here) Alignment machine** Battery lift** inspection harness** used engines** etc at $97**203.43 one-time costs\r"]
[null,null,null,null,null,"Auto Tech Abbreviated Feedback Template 2024-25.docx","Request 1: (I’m adding up all the equipment costs here) Alignment machine** Battery lift** inspection harness** used engines** etc at $97**203.43 one-time costs\r"]
["Reviewer","Amy","Misty",null,null,"Auto Tech Abbreviated Feedback Template 2024-25.docx","Request 2: Accommodate our growing program and satisfy ASE accreditation recommendations on use of available space by combining AT-128 and AT-132 into one larger room. (Facilities** cost unknown)\r"]
["Alignment with an Institutional Goal or Institutional Objective (0***3)","3","3",null,null,"Auto Tech Abbreviated Feedback Template 2024-25.docx","Request 2: Accommodate our growing program and satisfy ASE accreditation recommendations on use of available space by combining AT-128 and AT-132 into one larger room. (Facilities** cost unknown)\r"]
["Identified as a need based on assessment outcome(s) (0***3)","3","3",null,null,"Auto Tech Abbreviated Feedback Template 2024-25.docx","Request 2: Accommodate our growing program and satisfy ASE accreditation recommendations on use of available space by combining AT-128 and AT-132 into one larger room. (Facilities** cost unknown)\r"]
["Number of students affected (0***3)","3","2",null,null,"Auto Tech Abbreviated Feedback Template 2024-25.docx","Request 2: Accommodate our growing program and satisfy ASE accreditation recommendations on use of available space by combining AT-128 and AT-132 into one larger room. (Facilities** cost unknown)\r"]
["Meets a safety or legislated mandate (0***3)",2,2,null,null,"Auto Tech Abbreviated Feedback Template 2024-25.docx","Request 2: Accommodate our growing program and satisfy ASE accreditation recommendations on use of available space by combining AT-128 and AT-132 into one larger room. (Facilities** cost unknown)\r"]
["Criticality of the request (0***3)",3,3,null,null,"Auto Tech Abbreviated Feedback Template 2024-25.docx","Request 2: Accommodate our growing program and satisfy ASE accreditation recommendations on use of available space by combining AT-128 and AT-132 into one larger room. (Facilities** cost unknown)\r"]
["Total (0***15)",14,13,null,{"$f":"AVERAGE(B80:D80)","v":13.5},"Auto Tech Abbreviated Feedback Template 2024-25.docx","Request 2: Accommodate our growing program and satisfy ASE accreditation recommendations on use of available space by combining AT-128 and AT-132 into one larger room. (Facilities** cost unknown)\r"]
["Average:",13.5,null,null,null,"Auto Tech Abbreviated Feedback Template 2024-25.docx","Request 2: Accommodate our growing program and satisfy ASE accreditation recommendations on use of available space by combining AT-128 and AT-132 into one larger room. (Facilities** cost unknown)\r"]
[null,null,null,null,null,"Auto Tech Abbreviated Feedback Template 2024-25.docx","Request 2: Accommodate our growing program and satisfy ASE accreditation recommendations on use of available space by combining AT-128 and AT-132 into one larger room. (Facilities** cost unknown)\r"]
[null,null,null,null,null,"Auto Tech Abbreviated Feedback Template 2024-25.docx","Request 2: Accommodate our growing program and satisfy ASE accreditation recommendations on use of available space by combining AT-128 and AT-132 into one larger room. (Facilities** cost unknown)\r"]
[null,null,null,null,null,"Auto Tech Abbreviated Feedback Template 2024-25.docx","Request 2: Accommodate our growing program and satisfy ASE accreditation recommendations on use of available space by combining AT-128 and AT-132 into one larger room. (Facilities** cost unknown)\r"]
[null,null,null,null,null,"Auto Tech Abbreviated Feedback Template 2024-25.docx","Request 2: Accommodate our growing program and satisfy ASE accreditation recommendations on use of available space by combining AT-128 and AT-132 into one larger room. (Facilities** cost unknown)\r"]
["Reviewer","Amy",null,null,null,"Auto Tech Abbreviated Feedback Template 2024-25.docx","Request 3: 20 more hours for our AT ISS (personnel** cost unknown)\r"]
[null,"Misty",null,null,null,"Auto Tech Abbreviated Feedback Template 2024-25.docx","Request 3: 20 more hours for our AT ISS (personnel** cost unknown)\r"]
["Alignment with an Institutional Goal or Institutional Objective (0***3)",2,2,null,null,"Auto Tech Abbreviated Feedback Template 2024-25.docx","Request 3: 20 more hours for our AT ISS (personnel** cost unknown)\r"]
["Identified as a need based on assessment outcome(s) (0***3)",2,2,null,null,"Auto Tech Abbreviated Feedback Template 2024-25.docx","Request 3: 20 more hours for our AT ISS (personnel** cost unknown)\r"]
["Number of students affected (0***3)",3,2,null,null,"Auto Tech Abbreviated Feedback Template 2024-25.docx","Request 3: 20 more hours for our AT ISS (personnel** cost unknown)\r"]
["Meets a safety or legislated mandate (0***3)",2,2,null,null,"Auto Tech Abbreviated Feedback Template 2024-25.docx","Request 3: 20 more hours for our AT ISS (personnel** cost unknown)\r"]
["Criticality of the request (0***3)",2,2,null,null,"Auto Tech Abbreviated Feedback Template 2024-25.docx","Request 3: 20 more hours for our AT ISS (personnel** cost unknown)\r"]
["Total (0***15)",11,10,null,{"$f":"AVERAGE(B93:D93)","v":10.5},"Auto Tech Abbreviated Feedback Template 2024-25.docx","Request 3: 20 more hours for our AT ISS (personnel** cost unknown)\r"]
["Average:",10.5,null,null,null,"Auto Tech Abbreviated Feedback Template 2024-25.docx","Request 3: 20 more hours for our AT ISS (personnel** cost unknown)\r"]
[null,null,null,null,null,"Auto Tech Abbreviated Feedback Template 2024-25.docx","Request 3: 20 more hours for our AT ISS (personnel** cost unknown)\r"]
[null,null,null,null,null,"Auto Tech Abbreviated Feedback Template 2024-25.docx","Request 3: 20 more hours for our AT ISS (personnel** cost unknown)\r"]
[null,null,null,null,null,"Auto Tech Abbreviated Feedback Template 2024-25.docx","Request 3: 20 more hours for our AT ISS (personnel** cost unknown)\r"]
["Reviewer","Amy",null,null,null,"Auto Tech Abbreviated Feedback Template 2024-25.docx","Request 4: Access to entry-level ASE certification examination AND update training for automotive faculty per accreditation standard. $6**000 each year\r"]
[null,"Misty",null,null,null,"Auto Tech Abbreviated Feedback Template 2024-25.docx","Request 4: Access to entry-level ASE certification examination AND update training for automotive faculty per accreditation standard. $6**000 each year\r"]
["Alignment with an Institutional Goal or Institutional Objective (0***3)",3,3,null,null,"Auto Tech Abbreviated Feedback Template 2024-25.docx","Request 4: Access to entry-level ASE certification examination AND update training for automotive faculty per accreditation standard. $6**000 each year\r"]
["Identified as a need based on assessment outcome(s) (0***3)",3,3,null,null,"Auto Tech Abbreviated Feedback Template 2024-25.docx","Request 4: Access to entry-level ASE certification examination AND update training for automotive faculty per accreditation standard. $6**000 each year\r"]
["Number of students affected (0***3)",3,2,null,null,"Auto Tech Abbreviated Feedback Template 2024-25.docx","Request 4: Access to entry-level ASE certification examination AND update training for automotive faculty per accreditation standard. $6**000 each year\r"]
["Meets a safety or legislated mandate (0***3)",2,2,null,null,"Auto Tech Abbreviated Feedback Template 2024-25.docx","Request 4: Access to entry-level ASE certification examination AND update training for automotive faculty per accreditation standard. $6**000 each year\r"]
["Criticality of the request (0***3)",2,2,null,null,"Auto Tech Abbreviated Feedback Template 2024-25.docx","Request 4: Access to entry-level ASE certification examination AND update training for automotive faculty per accreditation standard. $6**000 each year\r"]
["Total (0***15)",13,12,null,{"$f":"AVERAGE(B105:D105)","v":12.5},"Auto Tech Abbreviated Feedback Template 2024-25.docx","Request 4: Access to entry-level ASE certification examination AND update training for automotive faculty per accreditation standard. $6**000 each year\r"]
["Average:",12.5,null,null,null,"Auto Tech Abbreviated Feedback Template 2024-25.docx","Request 4: Access to entry-level ASE certification examination AND update training for automotive faculty per accreditation standard. $6**000 each year\r"]
[null,null,null,null,null,"Auto Tech Abbreviated Feedback Template 2024-25.docx","Request 4: Access to entry-level ASE certification examination AND update training for automotive faculty per accreditation standard. $6**000 each year\r"]
[null,null,null,null,null,"Auto Tech Abbreviated Feedback Template 2024-25.docx","Request 4: Access to entry-level ASE certification examination AND update training for automotive faculty per accreditation standard. $6**000 each year\r"]
[null,null,null,null,null,"Auto Tech Abbreviated Feedback Template 2024-25.docx","Request 4: Access to entry-level ASE certification examination AND update training for automotive faculty per accreditation standard. $6**000 each year\r"]
["Reviewer","Ross","Anibal","Amy",null,"Basic Needs Abbreviated Feedback Template 2024-25.docx","Request 1: Retention specialist salary/benefits for class visits and proactive inreach\r"]
["Alignment with an Institutional Goal or Institutional Objective (0***3)",3,3,3,null,"Basic Needs Abbreviated Feedback Template 2024-25.docx","Request 1: Retention specialist salary/benefits for class visits and proactive inreach\r"]
["Identified as a need based on assessment outcome(s) (0***3)",3,3,3,null,"Basic Needs Abbreviated Feedback Template 2024-25.docx","Request 1: Retention specialist salary/benefits for class visits and proactive inreach\r"]
["Number of students affected (0***3)",3,3,3,null,"Basic Needs Abbreviated Feedback Template 2024-25.docx","Request 1: Retention specialist salary/benefits for class visits and proactive inreach\r"]
["Meets a safety or legislated mandate (0***3)",0,0,0,null,"Basic Needs Abbreviated Feedback Template 2024-25.docx","Request 1: Retention specialist salary/benefits for class visits and proactive inreach\r"]
["Criticality of the request (0***3)",2,2,3,null,"Basic Needs Abbreviated Feedback Template 2024-25.docx","Request 1: Retention specialist salary/benefits for class visits and proactive inreach\r"]
["Total (0***15)",11,11,12,{"$f":"AVERAGE(B116:D116)","v":11.333333333333334},"Basic Needs Abbreviated Feedback Template 2024-25.docx","Request 1: Retention specialist salary/benefits for class visits and proactive inreach\r"]
["Average:",11.33,null,null,null,"Basic Needs Abbreviated Feedback Template 2024-25.docx","Request 1: Retention specialist salary/benefits for class visits and proactive inreach\r"]
[null,null,null,null,null,"Basic Needs Abbreviated Feedback Template 2024-25.docx","Request 1: Retention specialist salary/benefits for class visits and proactive inreach\r"]
[null,null,null,null,null,"Basic Needs Abbreviated Feedback Template 2024-25.docx","Request 1: Retention specialist salary/benefits for class visits and proactive inreach\r"]
[null,null,null,null,null,"Basic Needs Abbreviated Feedback Template 2024-25.docx","Request 1: Retention specialist salary/benefits for class visits and proactive inreach\r"]
[null,null,null,null,null,"Basic Needs Abbreviated Feedback Template 2024-25.docx","Request 1: Retention specialist salary/benefits for class visits and proactive inreach\r"]
["Reviewer","Ross","Anibal","Amy",null,"Basic Needs Abbreviated Feedback Template 2024-25.docx","Request 2: Privacy booth for BNC case management (this plan has been retracted due to fire code construction needs)\r"]
["Alignment with an Institutional Goal or Institutional Objective (0***3)",1,1,"NA",null,"Basic Needs Abbreviated Feedback Template 2024-25.docx","Request 2: Privacy booth for BNC case management (this plan has been retracted due to fire code construction needs)\r"]
["Identified as a need based on assessment outcome(s) (0***3)",2,1,"NA",null,"Basic Needs Abbreviated Feedback Template 2024-25.docx","Request 2: Privacy booth for BNC case management (this plan has been retracted due to fire code construction needs)\r"]
[null,null,null,null,null,"Basic Needs Abbreviated Feedback Template 2024-25.docx","Request 2: Privacy booth for BNC case management (this plan has been retracted due to fire code construction needs)\r"]
["Number of students affected (0***3)","3","3","NA",null,"Basic Needs Abbreviated Feedback Template 2024-25.docx","Request 2: Privacy booth for BNC case management (this plan has been retracted due to fire code construction needs)\r"]
[null,null,null,null,null,"Basic Needs Abbreviated Feedback Template 2024-25.docx","Request 2: Privacy booth for BNC case management (this plan has been retracted due to fire code construction needs)\r"]
["Meets a safety or legislated mandate (0***3)","0","0","NA",null,"Basic Needs Abbreviated Feedback Template 2024-25.docx","Request 2: Privacy booth for BNC case management (this plan has been retracted due to fire code construction needs)\r"]
[null,null,null,null,null,"Basic Needs Abbreviated Feedback Template 2024-25.docx","Request 2: Privacy booth for BNC case management (this plan has been retracted due to fire code construction needs)\r"]
["Criticality of the request (0***3)","1","1","NA",null,"Basic Needs Abbreviated Feedback Template 2024-25.docx","Request 2: Privacy booth for BNC case management (this plan has been retracted due to fire code construction needs)\r"]
[null,null,null,null,null,"Basic Needs Abbreviated Feedback Template 2024-25.docx","Request 2: Privacy booth for BNC case management (this plan has been retracted due to fire code construction needs)\r"]
["Total (0***15)",7,6,null,{"$f":"AVERAGE(B132:D132)","v":6.5},"Basic Needs Abbreviated Feedback Template 2024-25.docx","Request 2: Privacy booth for BNC case management (this plan has been retracted due to fire code construction needs)\r"]
["Average:","NA",null,null,null,"Basic Needs Abbreviated Feedback Template 2024-25.docx","Request 2: Privacy booth for BNC case management (this plan has been retracted due to fire code construction needs)\r"]
["Reviewer","Ross","Anibal","AMY",null,"Basic Needs Abbreviated Feedback Template 2024-25.docx","Request 3: Internet splitter setup (for second staff work station)\r"]
["Alignment with an Institutional Goal or Institutional Objective (0***3)",0,0,2,null,"Basic Needs Abbreviated Feedback Template 2024-25.docx","Request 3: Internet splitter setup (for second staff work station)\r"]
["Identified as a need based on assessment outcome(s) (0***3)",2,2,2,null,"Basic Needs Abbreviated Feedback Template 2024-25.docx","Request 3: Internet splitter setup (for second staff work station)\r"]
["Number of students affected (0***3)",3,3,3,null,"Basic Needs Abbreviated Feedback Template 2024-25.docx","Request 3: Internet splitter setup (for second staff work station)\r"]
["Meets a safety or legislated mandate (0***3)",0,0,0,null,"Basic Needs Abbreviated Feedback Template 2024-25.docx","Request 3: Internet splitter setup (for second staff work station)\r"]
["Criticality of the request (0***3)",2,2,1,null,"Basic Needs Abbreviated Feedback Template 2024-25.docx","Request 3: Internet splitter setup (for second staff work station)\r"]
["Total (0***15)",7,7,8,{"$f":"AVERAGE(B140:D140)","v":7.333333333333333},"Basic Needs Abbreviated Feedback Template 2024-25.docx","Request 3: Internet splitter setup (for second staff work station)\r"]
["Average:",7.33,null,null,null,"Basic Needs Abbreviated Feedback Template 2024-25.docx","Request 3: Internet splitter setup (for second staff work station)\r"]
[null,null,null,null,null,"Basic Needs Abbreviated Feedback Template 2024-25.docx","Request 3: Internet splitter setup (for second staff work station)\r"]
[null,null,null,null,null,"Basic Needs Abbreviated Feedback Template 2024-25.docx","Request 3: Internet splitter setup (for second staff work station)\r"]
[null,null,null,null,null,"Basic Needs Abbreviated Feedback Template 2024-25.docx","Request 3: Internet splitter setup (for second staff work station)\r"]
[null,null,null,null,null,"Basic Needs Abbreviated Feedback Template 2024-25.docx","Request 3: Internet splitter setup (for second staff work station)\r"]
["Reviewer",null,null,null,null,"Bus Office Abbreviated Feedback Template 2024-25.docx","Request 1: \r"]
["Alignment with an Institutional Goal or Institutional Objective (0***3)",null,null,null,null,"Bus Office Abbreviated Feedback Template 2024-25.docx","Request 1: \r"]
["Identified as a need based on assessment outcome(s) (0***3)",null,null,null,null,"Bus Office Abbreviated Feedback Template 2024-25.docx","Request 1: \r"]
["Number of students affected (0***3)",null,null,null,null,"Bus Office Abbreviated Feedback Template 2024-25.docx","Request 1: \r"]
["Meets a safety or legislated mandate (0***3)",null,null,null,null,"Bus Office Abbreviated Feedback Template 2024-25.docx","Request 1: \r"]
["Criticality of the request (0***3)",null,null,null,null,"Bus Office Abbreviated Feedback Template 2024-25.docx","Request 1: \r"]
["Average:",null,null,null,null,"Bus Office Abbreviated Feedback Template 2024-25.docx","Request 1: \r"]
[null,null,null,null,null,"Bus Office Abbreviated Feedback Template 2024-25.docx","Request 1: \r"]
[null,null,null,null,null,"Bus Office Abbreviated Feedback Template 2024-25.docx","Request 1: \r"]
[null,null,null,null,null,"Bus Office Abbreviated Feedback Template 2024-25.docx","Request 1: \r"]
[null,null,null,null,null,"Bus Office Abbreviated Feedback Template 2024-25.docx","Request 1: \r"]
["Reviewer",null,null,null,null,"Bus Office Abbreviated Feedback Template 2024-25.docx","Request 2: \r"]
["Alignment with an Institutional Goal or Institutional Objective (0***3)",null,null,null,null,"Bus Office Abbreviated Feedback Template 2024-25.docx","Request 2: \r"]
["Identified as a need based on assessment outcome(s) (0***3)",null,null,null,null,"Bus Office Abbreviated Feedback Template 2024-25.docx","Request 2: \r"]
["Number of students affected (0***3)",null,null,null,null,"Bus Office Abbreviated Feedback Template 2024-25.docx","Request 2: \r"]
["Meets a safety or legislated mandate (0***3)",null,null,null,null,"Bus Office Abbreviated Feedback Template 2024-25.docx","Request 2: \r"]
["Criticality of the request (0***3)",null,null,null,null,"Bus Office Abbreviated Feedback Template 2024-25.docx","Request 2: \r"]
["Average:",null,null,null,null,"Bus Office Abbreviated Feedback Template 2024-25.docx","Request 2: \r"]
[null,null,null,null,null,"Bus Office Abbreviated Feedback Template 2024-25.docx","Request 2: \r"]
[null,null,null,null,null,"Bus Office Abbreviated Feedback Template 2024-25.docx","Request 2: \r"]
[null,null,null,null,null,"Bus Office Abbreviated Feedback Template 2024-25.docx","Request 2: \r"]
[null,null,null,null,null,"Bus Office Abbreviated Feedback Template 2024-25.docx","Request 2: \r"]
["Reviewer",null,null,null,null,"Bus Office Abbreviated Feedback Template 2024-25.docx","Request 3: \r"]
["Alignment with an Institutional Goal or Institutional Objective (0***3)",null,null,null,null,"Bus Office Abbreviated Feedback Template 2024-25.docx","Request 3: \r"]
["Identified as a need based on assessment outcome(s) (0***3)",null,null,null,null,"Bus Office Abbreviated Feedback Template 2024-25.docx","Request 3: \r"]
["Number of students affected (0***3)",null,null,null,null,"Bus Office Abbreviated Feedback Template 2024-25.docx","Request 3: \r"]
["Meets a safety or legislated mandate (0***3)",null,null,null,null,"Bus Office Abbreviated Feedback Template 2024-25.docx","Request 3: \r"]
["Criticality of the request (0***3)",null,null,null,null,"Bus Office Abbreviated Feedback Template 2024-25.docx","Request 3: \r"]
["Average:",null,null,null,null,"Bus Office Abbreviated Feedback Template 2024-25.docx","Request 3: \r"]
[null,null,null,null,null,"Bus Office Abbreviated Feedback Template 2024-25.docx","Request 3: \r"]
[null,null,null,null,null,"Bus Office Abbreviated Feedback Template 2024-25.docx","Request 3: \r"]
[null,null,null,null,null,"Bus Office Abbreviated Feedback Template 2024-25.docx","Request 3: \r"]
[null,null,null,null,null,"Bus Office Abbreviated Feedback Template 2024-25.docx","Request 3: \r"]
["Reviewer","Ross","amy","Anibal",null,"Dental Abbreviated Feedback Template 2024-25.docx","Request 1: Instructional Aide\r"]
["Alignment with an Institutional Goal or Institutional Objective (0***3)","1","3 – while not clear in the narrative, I see this as necessary for career readiness (mission) & required for accreditation","3 I agree",null,"Dental Abbreviated Feedback Template 2024-25.docx","Request 1: Instructional Aide\r"]
["Identified as a need based on assessment outcome(s) (0***3)","3","1 – I didn’t see any assessment data; only some program***level stats","1 I agree",null,"Dental Abbreviated Feedback Template 2024-25.docx","Request 1: Instructional Aide\r"]
["Number of students affected (0***3)","1","1","1",null,"Dental Abbreviated Feedback Template 2024-25.docx","Request 1: Instructional Aide\r"]
["Meets a safety or legislated mandate (0***3)",3,3,3,null,"Dental Abbreviated Feedback Template 2024-25.docx","Request 1: Instructional Aide\r"]
["Criticality of the request (0***3)",3,3,3,null,"Dental Abbreviated Feedback Template 2024-25.docx","Request 1: Instructional Aide\r"]
["Total (0***15)",11,11,null,{"$f":"AVERAGE(B185:D185)","v":11},"Dental Abbreviated Feedback Template 2024-25.docx","Request 1: Instructional Aide\r"]
["Did they already find a funding source so not General Fund request?",11,null,null,null,"Dental Abbreviated Feedback Template 2024-25.docx","Request 1: Instructional Aide\r"]
["Average:",11,null,null,null,"Dental Abbreviated Feedback Template 2024-25.docx","Request 1: Instructional Aide\r"]
[null,null,null,null,null,"Dental Abbreviated Feedback Template 2024-25.docx","Request 1: Instructional Aide\r"]
[null,null,null,null,null,"Dental Abbreviated Feedback Template 2024-25.docx","Request 1: Instructional Aide\r"]
[null,null,null,null,null,"Dental Abbreviated Feedback Template 2024-25.docx","Request 1: Instructional Aide\r"]
["Reviewer","Ross","amy","Anibal",null,"Dental Abbreviated Feedback Template 2024-25.docx","Request 2: Compressor replacement for original compressor from Measure Q funds in 2008\r"]
["Alignment with an Institutional Goal or Institutional Objective (0***3)",0,1,0,null,"Dental Abbreviated Feedback Template 2024-25.docx","Request 2: Compressor replacement for original compressor from Measure Q funds in 2008\r"]
["Identified as a need based on assessment outcome(s) (0***3)",2,2,"1 I didn’t see any reference to recent assessment results. ",null,"Dental Abbreviated Feedback Template 2024-25.docx","Request 2: Compressor replacement for original compressor from Measure Q funds in 2008\r"]
["Number of students affected (0***3)",2,2,1,null,"Dental Abbreviated Feedback Template 2024-25.docx","Request 2: Compressor replacement for original compressor from Measure Q funds in 2008\r"]
["Meets a safety or legislated mandate (0***3)",2,3,1,null,"Dental Abbreviated Feedback Template 2024-25.docx","Request 2: Compressor replacement for original compressor from Measure Q funds in 2008\r"]
["Criticality of the request (0***3)",2,3,1,null,"Dental Abbreviated Feedback Template 2024-25.docx","Request 2: Compressor replacement for original compressor from Measure Q funds in 2008\r"]
["Total (0***15)",8,11,4,{"$f":"AVERAGE(B197:D197)","v":7.666666666666667},"Dental Abbreviated Feedback Template 2024-25.docx","Request 2: Compressor replacement for original compressor from Measure Q funds in 2008\r"]
["Average:",8,null,null,null,"Dental Abbreviated Feedback Template 2024-25.docx","Request 2: Compressor replacement for original compressor from Measure Q funds in 2008\r"]
[null,null,null,null,null,"Dental Abbreviated Feedback Template 2024-25.docx","Request 2: Compressor replacement for original compressor from Measure Q funds in 2008\r"]
[null,null,null,null,null,"Dental Abbreviated Feedback Template 2024-25.docx","Request 2: Compressor replacement for original compressor from Measure Q funds in 2008\r"]
[null,null,null,null,null,"Dental Abbreviated Feedback Template 2024-25.docx","Request 2: Compressor replacement for original compressor from Measure Q funds in 2008\r"]
[null,null,null,null,null,"Dental Abbreviated Feedback Template 2024-25.docx","Request 2: Compressor replacement for original compressor from Measure Q funds in 2008\r"]
["Reviewer","Ross","amy","Anibal",null,"Dental Abbreviated Feedback Template 2024-25.docx","Request 3: Vacuum replacement for original vacuum (suction) from Measure Q in 2008\r"]
["Alignment with an Institutional Goal or Institutional Objective (0***3)",0,1,0,null,"Dental Abbreviated Feedback Template 2024-25.docx","Request 3: Vacuum replacement for original vacuum (suction) from Measure Q in 2008\r"]
["Identified as a need based on assessment outcome(s) (0***3)",2,2,"1 no recent assessment was mentioned.",null,"Dental Abbreviated Feedback Template 2024-25.docx","Request 3: Vacuum replacement for original vacuum (suction) from Measure Q in 2008\r"]
["Number of students affected (0***3)",2,2,1,null,"Dental Abbreviated Feedback Template 2024-25.docx","Request 3: Vacuum replacement for original vacuum (suction) from Measure Q in 2008\r"]
["Meets a safety or legislated mandate (0***3)",2,3,1,null,"Dental Abbreviated Feedback Template 2024-25.docx","Request 3: Vacuum replacement for original vacuum (suction) from Measure Q in 2008\r"]
["Criticality of the request (0***3)",2,3,1,null,"Dental Abbreviated Feedback Template 2024-25.docx","Request 3: Vacuum replacement for original vacuum (suction) from Measure Q in 2008\r"]
["Total (0***15)",8,11,4,{"$f":"AVERAGE(B209:D209)","v":7.666666666666667},"Dental Abbreviated Feedback Template 2024-25.docx","Request 3: Vacuum replacement for original vacuum (suction) from Measure Q in 2008\r"]
["Average:",8,null,null,null,"Dental Abbreviated Feedback Template 2024-25.docx","Request 3: Vacuum replacement for original vacuum (suction) from Measure Q in 2008\r"]
[null,null,null,null,null,"Dental Abbreviated Feedback Template 2024-25.docx","Request 3: Vacuum replacement for original vacuum (suction) from Measure Q in 2008\r"]
[null,null,null,null,null,"Dental Abbreviated Feedback Template 2024-25.docx","Request 3: Vacuum replacement for original vacuum (suction) from Measure Q in 2008\r"]
[null,null,null,null,null,"Dental Abbreviated Feedback Template 2024-25.docx","Request 3: Vacuum replacement for original vacuum (suction) from Measure Q in 2008\r"]
[null,null,null,null,null,"Dental Abbreviated Feedback Template 2024-25.docx","Request 3: Vacuum replacement for original vacuum (suction) from Measure Q in 2008\r"]
["Reviewer","amy","Misty",null,null,"Distance Ed Abbreviated Feedback Template 2024-25.docx","Request 1: rural Student Outreach & Support 9satellite learning support site)\r"]
["Alignment with an Institutional Goal or Institutional Objective (0***3)",2,3,null,null,"Distance Ed Abbreviated Feedback Template 2024-25.docx","Request 1: rural Student Outreach & Support 9satellite learning support site)\r"]
["Identified as a need based on assessment outcome(s) (0***3)",3,3,null,null,"Distance Ed Abbreviated Feedback Template 2024-25.docx","Request 1: rural Student Outreach & Support 9satellite learning support site)\r"]
["Number of students affected (0***3)",2,2,null,null,"Distance Ed Abbreviated Feedback Template 2024-25.docx","Request 1: rural Student Outreach & Support 9satellite learning support site)\r"]
["Meets a safety or legislated mandate (0***3)",0,0,null,null,"Distance Ed Abbreviated Feedback Template 2024-25.docx","Request 1: rural Student Outreach & Support 9satellite learning support site)\r"]
["Criticality of the request (0***3)",2,2,null,null,"Distance Ed Abbreviated Feedback Template 2024-25.docx","Request 1: rural Student Outreach & Support 9satellite learning support site)\r"]
["Total (0***15)",9,10,null,{"$f":"AVERAGE(B221:D221)","v":9.5},"Distance Ed Abbreviated Feedback Template 2024-25.docx","Request 1: rural Student Outreach & Support 9satellite learning support site)\r"]
["Average:",9.5,null,null,null,"Distance Ed Abbreviated Feedback Template 2024-25.docx","Request 1: rural Student Outreach & Support 9satellite learning support site)\r"]
[null,null,null,null,null,"Distance Ed Abbreviated Feedback Template 2024-25.docx","Request 1: rural Student Outreach & Support 9satellite learning support site)\r"]
[null,null,null,null,null,"Distance Ed Abbreviated Feedback Template 2024-25.docx","Request 1: rural Student Outreach & Support 9satellite learning support site)\r"]
[null,null,null,null,null,"Distance Ed Abbreviated Feedback Template 2024-25.docx","Request 1: rural Student Outreach & Support 9satellite learning support site)\r"]
[null,null,null,null,null,"Distance Ed Abbreviated Feedback Template 2024-25.docx","Request 1: rural Student Outreach & Support 9satellite learning support site)\r"]
["Reviewer","amy","Misty",null,null,"Distance Ed Abbreviated Feedback Template 2024-25.docx","Request 2: AI & Rumi Software\r"]
["Alignment with an Institutional Goal or Institutional Objective (0***3)",3,3,null,null,"Distance Ed Abbreviated Feedback Template 2024-25.docx","Request 2: AI & Rumi Software\r"]
["Identified as a need based on assessment outcome(s) (0***3)",3,3,null,null,"Distance Ed Abbreviated Feedback Template 2024-25.docx","Request 2: AI & Rumi Software\r"]
["Number of students affected (0***3)",3,3,null,null,"Distance Ed Abbreviated Feedback Template 2024-25.docx","Request 2: AI & Rumi Software\r"]
["Meets a safety or legislated mandate (0***3)","0","0",null,null,"Distance Ed Abbreviated Feedback Template 2024-25.docx","Request 2: AI & Rumi Software\r"]
["Criticality of the request (0***3)","1","2",null,null,"Distance Ed Abbreviated Feedback Template 2024-25.docx","Request 2: AI & Rumi Software\r"]
["Total (0***15)","10","11",null,{"$f":"(10+11)/2","v":10.5},"Distance Ed Abbreviated Feedback Template 2024-25.docx","Request 2: AI & Rumi Software\r"]
["Average:","10.5",null,null,null,"Distance Ed Abbreviated Feedback Template 2024-25.docx","Request 2: AI & Rumi Software\r"]
[null,null,null,null,null,"Distance Ed Abbreviated Feedback Template 2024-25.docx","Request 2: AI & Rumi Software\r"]
[null,null,null,null,null,"Distance Ed Abbreviated Feedback Template 2024-25.docx","Request 2: AI & Rumi Software\r"]
[null,null,null,null,null,"Distance Ed Abbreviated Feedback Template 2024-25.docx","Request 2: AI & Rumi Software\r"]
[null,null,null,null,null,"Distance Ed Abbreviated Feedback Template 2024-25.docx","Request 2: AI & Rumi Software\r"]
["Reviewer","amy","Misty",null,null,"Distance Ed Abbreviated Feedback Template 2024-25.docx","Request 3: Development\r"]
["Alignment with an Institutional Goal or Institutional Objective (0***3)","1 career readiness",1,null,null,"Distance Ed Abbreviated Feedback Template 2024-25.docx","Request 3: Development\r"]
["Identified as a need based on assessment outcome(s) (0***3)","2 if they get the software above this has to go with it",2,null,null,"Distance Ed Abbreviated Feedback Template 2024-25.docx","Request 3: Development\r"]
["Number of students affected (0***3)",3,3,null,null,"Distance Ed Abbreviated Feedback Template 2024-25.docx","Request 3: Development\r"]
["Meets a safety or legislated mandate (0***3)",1,1,null,null,"Distance Ed Abbreviated Feedback Template 2024-25.docx","Request 3: Development\r"]
["Criticality of the request (0***3)",2,2,null,null,"Distance Ed Abbreviated Feedback Template 2024-25.docx","Request 3: Development\r"]
["Total (0***15)",9,9,null,{"$f":"AVERAGE(B245:D245)","v":9},"Distance Ed Abbreviated Feedback Template 2024-25.docx","Request 3: Development\r"]
["Average:",9,null,null,null,"Distance Ed Abbreviated Feedback Template 2024-25.docx","Request 3: Development\r"]
[null,null,null,null,null,"Distance Ed Abbreviated Feedback Template 2024-25.docx","Request 3: Development\r"]
[null,null,null,null,null,"Distance Ed Abbreviated Feedback Template 2024-25.docx","Request 3: Development\r"]
[null,null,null,null,null,"Distance Ed Abbreviated Feedback Template 2024-25.docx","Request 3: Development\r"]
[null,null,null,null,null,"Distance Ed Abbreviated Feedback Template 2024-25.docx","Request 3: Development\r"]
["Reviewer","amy","Misty",null,null,"Distance Ed Abbreviated Feedback Template 2024-25.docx","Request 4: Accessibility Capacity Project\r"]
["Alignment with an Institutional Goal or Institutional Objective (0***3)",3,2,null,null,"Distance Ed Abbreviated Feedback Template 2024-25.docx","Request 4: Accessibility Capacity Project\r"]
["Identified as a need based on assessment outcome(s) (0***3)",3,2,null,null,"Distance Ed Abbreviated Feedback Template 2024-25.docx","Request 4: Accessibility Capacity Project\r"]
["Number of students affected (0***3)",3,3,null,null,"Distance Ed Abbreviated Feedback Template 2024-25.docx","Request 4: Accessibility Capacity Project\r"]
["Meets a safety or legislated mandate (0***3)",3,2,null,null,"Distance Ed Abbreviated Feedback Template 2024-25.docx","Request 4: Accessibility Capacity Project\r"]
["Criticality of the request (0***3)",2,2,null,null,"Distance Ed Abbreviated Feedback Template 2024-25.docx","Request 4: Accessibility Capacity Project\r"]
["Total (0***15)",14,11,null,{"$f":"AVERAGE(B257:D257)","v":12.5},"Distance Ed Abbreviated Feedback Template 2024-25.docx","Request 4: Accessibility Capacity Project\r"]
["Average:",12.5,null,null,null,"Distance Ed Abbreviated Feedback Template 2024-25.docx","Request 4: Accessibility Capacity Project\r"]
[null,null,null,null,null,"Distance Ed Abbreviated Feedback Template 2024-25.docx","Request 4: Accessibility Capacity Project\r"]
[null,null,null,null,null,"Distance Ed Abbreviated Feedback Template 2024-25.docx","Request 4: Accessibility Capacity Project\r"]
[null,null,null,null,null,"Distance Ed Abbreviated Feedback Template 2024-25.docx","Request 4: Accessibility Capacity Project\r"]
[null,null,null,null,null,"Distance Ed Abbreviated Feedback Template 2024-25.docx","Request 4: Accessibility Capacity Project\r"]
["Reviewer","amy","Misty",null,null,"Distance Ed Abbreviated Feedback Template 2024-25.docx","Request 5: Canvas Admin Professional Development\r"]
["Alignment with an Institutional Goal or Institutional Objective (0***3)",2,2,null,null,"Distance Ed Abbreviated Feedback Template 2024-25.docx","Request 5: Canvas Admin Professional Development\r"]
["Identified as a need based on assessment outcome(s) (0***3)",2,2,null,null,"Distance Ed Abbreviated Feedback Template 2024-25.docx","Request 5: Canvas Admin Professional Development\r"]
["Number of students affected (0***3)",2,3,null,null,"Distance Ed Abbreviated Feedback Template 2024-25.docx","Request 5: Canvas Admin Professional Development\r"]
["Meets a safety or legislated mandate (0***3)",0,1,null,null,"Distance Ed Abbreviated Feedback Template 2024-25.docx","Request 5: Canvas Admin Professional Development\r"]
["Criticality of the request (0***3)",1,3,null,null,"Distance Ed Abbreviated Feedback Template 2024-25.docx","Request 5: Canvas Admin Professional Development\r"]
["Total (0***15)",7,11,null,{"$f":"AVERAGE(B269:D269)","v":9},"Distance Ed Abbreviated Feedback Template 2024-25.docx","Request 5: Canvas Admin Professional Development\r"]
["Average:",9,null,null,null,"Distance Ed Abbreviated Feedback Template 2024-25.docx","Request 5: Canvas Admin Professional Development\r"]
[null,null,null,null,null,"Distance Ed Abbreviated Feedback Template 2024-25.docx","Request 5: Canvas Admin Professional Development\r"]
[null,null,null,null,null,"Distance Ed Abbreviated Feedback Template 2024-25.docx","Request 5: Canvas Admin Professional Development\r"]
[null,null,null,null,null,"Distance Ed Abbreviated Feedback Template 2024-25.docx","Request 5: Canvas Admin Professional Development\r"]
[null,null,null,null,null,"Distance Ed Abbreviated Feedback Template 2024-25.docx","Request 5: Canvas Admin Professional Development\r"]
["Reviewer","Colin Trujillo ","Kyle Shamp","Bob Brown",null,"Fine Arts Abbreviated Feedback Template 2024-25.docx","Request 1: Improve storage infrastructure in the building to make it equivalent to the items that we had in the old creative arts.\r"]
["Alignment with an Institutional Goal or Institutional Objective (0***3)",3,3,2,null,"Fine Arts Abbreviated Feedback Template 2024-25.docx","Request 1: Improve storage infrastructure in the building to make it equivalent to the items that we had in the old creative arts.\r"]
["Identified as a need based on assessment outcome(s) (0***3)",0,0,0,null,"Fine Arts Abbreviated Feedback Template 2024-25.docx","Request 1: Improve storage infrastructure in the building to make it equivalent to the items that we had in the old creative arts.\r"]
["Number of students affected (0***3)",2,3,3,null,"Fine Arts Abbreviated Feedback Template 2024-25.docx","Request 1: Improve storage infrastructure in the building to make it equivalent to the items that we had in the old creative arts.\r"]
["Meets a safety or legislated mandate (0***3)",3,3,3,null,"Fine Arts Abbreviated Feedback Template 2024-25.docx","Request 1: Improve storage infrastructure in the building to make it equivalent to the items that we had in the old creative arts.\r"]
["Criticality of the request (0***3)",3,3,3,null,"Fine Arts Abbreviated Feedback Template 2024-25.docx","Request 1: Improve storage infrastructure in the building to make it equivalent to the items that we had in the old creative arts.\r"]
["Total (0***15)",11,12,11,{"$f":"AVERAGE(B281:D281)","v":11.333333333333334},"Fine Arts Abbreviated Feedback Template 2024-25.docx","Request 1: Improve storage infrastructure in the building to make it equivalent to the items that we had in the old creative arts.\r"]
["Average:",11.5,null,null,null,"Fine Arts Abbreviated Feedback Template 2024-25.docx","Request 1: Improve storage infrastructure in the building to make it equivalent to the items that we had in the old creative arts.\r"]
[null,null,null,null,null,"Fine Arts Abbreviated Feedback Template 2024-25.docx","Request 1: Improve storage infrastructure in the building to make it equivalent to the items that we had in the old creative arts.\r"]
[null,null,null,null,null,"Fine Arts Abbreviated Feedback Template 2024-25.docx","Request 1: Improve storage infrastructure in the building to make it equivalent to the items that we had in the old creative arts.\r"]
[null,null,null,null,null,"Fine Arts Abbreviated Feedback Template 2024-25.docx","Request 1: Improve storage infrastructure in the building to make it equivalent to the items that we had in the old creative arts.\r"]
[null,null,null,null,null,"Fine Arts Abbreviated Feedback Template 2024-25.docx","Request 1: Improve storage infrastructure in the building to make it equivalent to the items that we had in the old creative arts.\r"]
["Reviewer","Colin Trujillo",null,null,null,"Fine Arts Abbreviated Feedback Template 2024-25.docx","Request 2: Install sound dampening in all art studios.\r"]
[null,"Kyle Shamp",null,null,null,"Fine Arts Abbreviated Feedback Template 2024-25.docx","Request 2: Install sound dampening in all art studios.\r"]
[null,"Bob Brown",null,null,null,"Fine Arts Abbreviated Feedback Template 2024-25.docx","Request 2: Install sound dampening in all art studios.\r"]
["Alignment with an Institutional Goal or Institutional Objective (0***3)","0","0","0",null,"Fine Arts Abbreviated Feedback Template 2024-25.docx","Request 2: Install sound dampening in all art studios.\r"]
["Identified as a need based on assessment outcome(s) (0***3)","0","0","0",null,"Fine Arts Abbreviated Feedback Template 2024-25.docx","Request 2: Install sound dampening in all art studios.\r"]
["Number of students affected (0***3)",2,3,2,null,"Fine Arts Abbreviated Feedback Template 2024-25.docx","Request 2: Install sound dampening in all art studios.\r"]
["Meets a safety or legislated mandate (0***3)",0,2,"1?",null,"Fine Arts Abbreviated Feedback Template 2024-25.docx","Request 2: Install sound dampening in all art studios.\r"]
["Criticality of the request (0***3)",1,1,1,null,"Fine Arts Abbreviated Feedback Template 2024-25.docx","Request 2: Install sound dampening in all art studios.\r"]
["Total (0***15)",3,6,4,{"$f":"AVERAGE(B295:D295)","v":4.333333333333333},"Fine Arts Abbreviated Feedback Template 2024-25.docx","Request 2: Install sound dampening in all art studios.\r"]
["Average:",4.3,null,null,null,"Fine Arts Abbreviated Feedback Template 2024-25.docx","Request 2: Install sound dampening in all art studios.\r"]
[null,null,null,null,null,"Fine Arts Abbreviated Feedback Template 2024-25.docx","Request 2: Install sound dampening in all art studios.\r"]
[null,null,null,null,null,"Fine Arts Abbreviated Feedback Template 2024-25.docx","Request 2: Install sound dampening in all art studios.\r"]
["Reviewer","Colin Trujillo",null,null,null,"Fine Arts Abbreviated Feedback Template 2024-25.docx","Request 3: Replace the outdated iMac computers in rooms 102** 104**\r"]
[null,"Kyle Shamp",null,null,null,"Fine Arts Abbreviated Feedback Template 2024-25.docx","Request 3: Replace the outdated iMac computers in rooms 102** 104**\r"]
[null,"Bob Brown",null,null,null,"Fine Arts Abbreviated Feedback Template 2024-25.docx","Request 3: Replace the outdated iMac computers in rooms 102** 104**\r"]
["Alignment with an Institutional Goal or Institutional Objective (0***3)",0,0,1,null,"Fine Arts Abbreviated Feedback Template 2024-25.docx","Request 3: Replace the outdated iMac computers in rooms 102** 104**\r"]
["Identified as a need based on assessment outcome(s) (0***3)",0,0,0,null,"Fine Arts Abbreviated Feedback Template 2024-25.docx","Request 3: Replace the outdated iMac computers in rooms 102** 104**\r"]
["Number of students affected (0***3)",2,3,2,null,"Fine Arts Abbreviated Feedback Template 2024-25.docx","Request 3: Replace the outdated iMac computers in rooms 102** 104**\r"]
["Meets a safety or legislated mandate (0***3)",0,0,0,null,"Fine Arts Abbreviated Feedback Template 2024-25.docx","Request 3: Replace the outdated iMac computers in rooms 102** 104**\r"]
["Criticality of the request (0***3)",1,0,1,null,"Fine Arts Abbreviated Feedback Template 2024-25.docx","Request 3: Replace the outdated iMac computers in rooms 102** 104**\r"]
["Total (0***15)",3,3,4,{"$f":"AVERAGE(B307:D307)","v":3.3333333333333335},"Fine Arts Abbreviated Feedback Template 2024-25.docx","Request 3: Replace the outdated iMac computers in rooms 102** 104**\r"]
["Average:",3.3,null,null,null,"Fine Arts Abbreviated Feedback Template 2024-25.docx","Request 3: Replace the outdated iMac computers in rooms 102** 104**\r"]
[null,null,null,null,null,"Fine Arts Abbreviated Feedback Template 2024-25.docx","Request 3: Replace the outdated iMac computers in rooms 102** 104**\r"]
[null,null,null,null,null,"Fine Arts Abbreviated Feedback Template 2024-25.docx","Request 3: Replace the outdated iMac computers in rooms 102** 104**\r"]
["Reviewer","Colin Trujillo",null,null,null,"Fine Arts Abbreviated Feedback Template 2024-25.docx","Request 4: Update the Still Life objects and Fabric collection.\r"]
[null,"Kyle Shamp",null,null,null,"Fine Arts Abbreviated Feedback Template 2024-25.docx","Request 4: Update the Still Life objects and Fabric collection.\r"]
[null,"Bob Brown",null,null,null,"Fine Arts Abbreviated Feedback Template 2024-25.docx","Request 4: Update the Still Life objects and Fabric collection.\r"]
["Alignment with an Institutional Goal or Institutional Objective (0***3)",0,0,0,null,"Fine Arts Abbreviated Feedback Template 2024-25.docx","Request 4: Update the Still Life objects and Fabric collection.\r"]
["Identified as a need based on assessment outcome(s) (0***3)",0,0,0,null,"Fine Arts Abbreviated Feedback Template 2024-25.docx","Request 4: Update the Still Life objects and Fabric collection.\r"]
["Number of students affected (0***3)",2,2,2,null,"Fine Arts Abbreviated Feedback Template 2024-25.docx","Request 4: Update the Still Life objects and Fabric collection.\r"]
["Meets a safety or legislated mandate (0***3)",0,0,0,null,"Fine Arts Abbreviated Feedback Template 2024-25.docx","Request 4: Update the Still Life objects and Fabric collection.\r"]
["Criticality of the request (0***3)",1,0,1,null,"Fine Arts Abbreviated Feedback Template 2024-25.docx","Request 4: Update the Still Life objects and Fabric collection.\r"]
["Total (0***15)",3,2,3,{"$f":"AVERAGE(B319:D319)","v":2.6666666666666665},"Fine Arts Abbreviated Feedback Template 2024-25.docx","Request 4: Update the Still Life objects and Fabric collection.\r"]
["Average:",2.6,null,null,null,"Fine Arts Abbreviated Feedback Template 2024-25.docx","Request 4: Update the Still Life objects and Fabric collection.\r"]
[null,null,null,null,null,"Fine Arts Abbreviated Feedback Template 2024-25.docx","Request 4: Update the Still Life objects and Fabric collection.\r"]
[null,null,null,null,null,"Fine Arts Abbreviated Feedback Template 2024-25.docx","Request 4: Update the Still Life objects and Fabric collection.\r"]
["Reviewer","Colin Trujillo",null,null,null,"Fine Arts Abbreviated Feedback Template 2024-25.docx","Request 5: Purchase 1 more doc camera for room 104.\r"]
[null,"Kyle Shamp",null,null,null,"Fine Arts Abbreviated Feedback Template 2024-25.docx","Request 5: Purchase 1 more doc camera for room 104.\r"]
[null,"Bob Brown",null,null,null,"Fine Arts Abbreviated Feedback Template 2024-25.docx","Request 5: Purchase 1 more doc camera for room 104.\r"]
["Alignment with an Institutional Goal or Institutional Objective (0***3)",0,0,0,null,"Fine Arts Abbreviated Feedback Template 2024-25.docx","Request 5: Purchase 1 more doc camera for room 104.\r"]
["Identified as a need based on assessment outcome(s) (0***3)",0,0,0,null,"Fine Arts Abbreviated Feedback Template 2024-25.docx","Request 5: Purchase 1 more doc camera for room 104.\r"]
["Number of students affected (0***3)",2,2,1,null,"Fine Arts Abbreviated Feedback Template 2024-25.docx","Request 5: Purchase 1 more doc camera for room 104.\r"]
["Meets a safety or legislated mandate (0***3)",0,0,0,null,"Fine Arts Abbreviated Feedback Template 2024-25.docx","Request 5: Purchase 1 more doc camera for room 104.\r"]
["Criticality of the request (0***3)",1,0,1,null,"Fine Arts Abbreviated Feedback Template 2024-25.docx","Request 5: Purchase 1 more doc camera for room 104.\r"]
["Total (0***15)",3,2,2,{"$f":"AVERAGE(B331:D331)","v":2.3333333333333335},"Fine Arts Abbreviated Feedback Template 2024-25.docx","Request 5: Purchase 1 more doc camera for room 104.\r"]
["Average:",2.2999999999999998,null,null,null,"Fine Arts Abbreviated Feedback Template 2024-25.docx","Request 5: Purchase 1 more doc camera for room 104.\r"]
[null,null,null,null,null,"Fine Arts Abbreviated Feedback Template 2024-25.docx","Request 5: Purchase 1 more doc camera for room 104.\r"]
[null,null,null,null,null,"Fine Arts Abbreviated Feedback Template 2024-25.docx","Request 5: Purchase 1 more doc camera for room 104.\r"]
["Reviewer","Colin Trujillo",null,null,null,"Fine Arts Abbreviated Feedback Template 2024-25.docx","Request 6: Purchase and install pegboard for room 102 to better assist\r"]
[null,"Kyle Shamp",null,null,null,"Fine Arts Abbreviated Feedback Template 2024-25.docx","Request 6: Purchase and install pegboard for room 102 to better assist\r"]
[null,"Bob Brown",null,null,null,"Fine Arts Abbreviated Feedback Template 2024-25.docx","Request 6: Purchase and install pegboard for room 102 to better assist\r"]
["Alignment with an Institutional Goal or Institutional Objective (0***3)",0,0,0,null,"Fine Arts Abbreviated Feedback Template 2024-25.docx","Request 6: Purchase and install pegboard for room 102 to better assist\r"]
["Identified as a need based on assessment outcome(s) (0***3)",0,0,0,null,"Fine Arts Abbreviated Feedback Template 2024-25.docx","Request 6: Purchase and install pegboard for room 102 to better assist\r"]
["Number of students affected (0***3)",1,1,1,null,"Fine Arts Abbreviated Feedback Template 2024-25.docx","Request 6: Purchase and install pegboard for room 102 to better assist\r"]
["Meets a safety or legislated mandate (0***3)","0",null,"0",null,"Fine Arts Abbreviated Feedback Template 2024-25.docx","Request 6: Purchase and install pegboard for room 102 to better assist\r"]
["Criticality of the request (0***3)","1","0","0",null,"Fine Arts Abbreviated Feedback Template 2024-25.docx","Request 6: Purchase and install pegboard for room 102 to better assist\r"]
["Total (0***15)","2","1","1",{"$f":"(2+1+1)/3","v":1.3333333333333333},"Fine Arts Abbreviated Feedback Template 2024-25.docx","Request 6: Purchase and install pegboard for room 102 to better assist\r"]
["Average:","1.3",null,null,null,"Fine Arts Abbreviated Feedback Template 2024-25.docx","Request 6: Purchase and install pegboard for room 102 to better assist\r"]
[null,null,null,null,null,"Fine Arts Abbreviated Feedback Template 2024-25.docx","Request 6: Purchase and install pegboard for room 102 to better assist\r"]
[null,null,null,null,null,"Fine Arts Abbreviated Feedback Template 2024-25.docx","Request 6: Purchase and install pegboard for room 102 to better assist\r"]
["Reviewer","Colin Trujillo",null,null,null,"Fine Arts Abbreviated Feedback Template 2024-25.docx","Request 7: CR Painting and Drawing students need lockers.\r"]
[null,"Kyle Shamp",null,null,null,"Fine Arts Abbreviated Feedback Template 2024-25.docx","Request 7: CR Painting and Drawing students need lockers.\r"]
[null,"Bob Brown",null,null,null,"Fine Arts Abbreviated Feedback Template 2024-25.docx","Request 7: CR Painting and Drawing students need lockers.\r"]
["Alignment with an Institutional Goal or Institutional Objective (0***3)",0,0,0,null,"Fine Arts Abbreviated Feedback Template 2024-25.docx","Request 7: CR Painting and Drawing students need lockers.\r"]
["Identified as a need based on assessment outcome(s) (0***3)",0,0,0,null,"Fine Arts Abbreviated Feedback Template 2024-25.docx","Request 7: CR Painting and Drawing students need lockers.\r"]
["Number of students affected (0***3)",1,2,1,null,"Fine Arts Abbreviated Feedback Template 2024-25.docx","Request 7: CR Painting and Drawing students need lockers.\r"]
["Meets a safety or legislated mandate (0***3)",0,0,0,null,"Fine Arts Abbreviated Feedback Template 2024-25.docx","Request 7: CR Painting and Drawing students need lockers.\r"]
["Criticality of the request (0***3)",1,0,1,null,"Fine Arts Abbreviated Feedback Template 2024-25.docx","Request 7: CR Painting and Drawing students need lockers.\r"]
["Total (0***15)",2,2,2,{"$f":"AVERAGE(B355:D355)","v":2},"Fine Arts Abbreviated Feedback Template 2024-25.docx","Request 7: CR Painting and Drawing students need lockers.\r"]
["Average:",2,null,null,null,"Fine Arts Abbreviated Feedback Template 2024-25.docx","Request 7: CR Painting and Drawing students need lockers.\r"]
[null,null,null,null,null,"Fine Arts Abbreviated Feedback Template 2024-25.docx","Request 7: CR Painting and Drawing students need lockers.\r"]
[null,null,null,null,null,"Fine Arts Abbreviated Feedback Template 2024-25.docx","Request 7: CR Painting and Drawing students need lockers.\r"]
["Reviewer","Colin Trujillo",null,null,null,"Fine Arts Abbreviated Feedback Template 2024-25.docx","Request 8: Electric kilns\r"]
[null,"Kyle Shamp",null,null,null,"Fine Arts Abbreviated Feedback Template 2024-25.docx","Request 8: Electric kilns\r"]
[null,"Bob Brown",null,null,null,"Fine Arts Abbreviated Feedback Template 2024-25.docx","Request 8: Electric kilns\r"]
["Alignment with an Institutional Goal or Institutional Objective (0***3)",0,0,0,null,"Fine Arts Abbreviated Feedback Template 2024-25.docx","Request 8: Electric kilns\r"]
["Identified as a need based on assessment outcome(s) (0***3)",0,0,0,null,"Fine Arts Abbreviated Feedback Template 2024-25.docx","Request 8: Electric kilns\r"]
["Number of students affected (0***3)",1,2,2,null,"Fine Arts Abbreviated Feedback Template 2024-25.docx","Request 8: Electric kilns\r"]
["Meets a safety or legislated mandate (0***3)",0,0,0,null,"Fine Arts Abbreviated Feedback Template 2024-25.docx","Request 8: Electric kilns\r"]
["Criticality of the request (0***3)",1,0,0,null,"Fine Arts Abbreviated Feedback Template 2024-25.docx","Request 8: Electric kilns\r"]
["Total (0***15)",2,2,2,{"$f":"AVERAGE(B367:D367)","v":2},"Fine Arts Abbreviated Feedback Template 2024-25.docx","Request 8: Electric kilns\r"]
["Average:",2,null,null,null,"Fine Arts Abbreviated Feedback Template 2024-25.docx","Request 8: Electric kilns\r"]
[null,null,null,null,null,"Fine Arts Abbreviated Feedback Template 2024-25.docx","Request 8: Electric kilns\r"]
[null,null,null,null,null,"Fine Arts Abbreviated Feedback Template 2024-25.docx","Request 8: Electric kilns\r"]
["Reviewer","Colin Trujillo",null,null,null,"Fine Arts Abbreviated Feedback Template 2024-25.docx","Request 9: raku kiln\r"]
[null,"Kyle Shamp",null,null,null,"Fine Arts Abbreviated Feedback Template 2024-25.docx","Request 9: raku kiln\r"]
[null,"Bob Brown",null,null,null,"Fine Arts Abbreviated Feedback Template 2024-25.docx","Request 9: raku kiln\r"]
["Alignment with an Institutional Goal or Institutional Objective (0***3)",0,0,0,null,"Fine Arts Abbreviated Feedback Template 2024-25.docx","Request 9: raku kiln\r"]
["Identified as a need based on assessment outcome(s) (0***3)",0,0,0,null,"Fine Arts Abbreviated Feedback Template 2024-25.docx","Request 9: raku kiln\r"]
["Number of students affected (0***3)",1,2,2,null,"Fine Arts Abbreviated Feedback Template 2024-25.docx","Request 9: raku kiln\r"]
["Meets a safety or legislated mandate (0***3)",0,0,0,null,"Fine Arts Abbreviated Feedback Template 2024-25.docx","Request 9: raku kiln\r"]
["Criticality of the request (0***3)",1,0,1,null,"Fine Arts Abbreviated Feedback Template 2024-25.docx","Request 9: raku kiln\r"]
["Total (0***15)",2,2,3,{"$f":"AVERAGE(B379:D379)","v":2.3333333333333335},"Fine Arts Abbreviated Feedback Template 2024-25.docx","Request 9: raku kiln\r"]
["Average:",2.2999999999999998,null,null,null,"Fine Arts Abbreviated Feedback Template 2024-25.docx","Request 9: raku kiln\r"]
[null,null,null,null,null,"Fine Arts Abbreviated Feedback Template 2024-25.docx","Request 9: raku kiln\r"]
[null,null,null,null,null,"Fine Arts Abbreviated Feedback Template 2024-25.docx","Request 9: raku kiln\r"]
["Reviewer","Colin Trujillo",null,null,null,"Fine Arts Abbreviated Feedback Template 2024-25.docx","Request 10: Add power drops and additional 220 outlets to the sculpture\r"]
[null,"Kyle Shamp",null,null,null,"Fine Arts Abbreviated Feedback Template 2024-25.docx","Request 10: Add power drops and additional 220 outlets to the sculpture\r"]
[null,"Bob Brown",null,null,null,"Fine Arts Abbreviated Feedback Template 2024-25.docx","Request 10: Add power drops and additional 220 outlets to the sculpture\r"]
["Alignment with an Institutional Goal or Institutional Objective (0***3)",0,0,0,null,"Fine Arts Abbreviated Feedback Template 2024-25.docx","Request 10: Add power drops and additional 220 outlets to the sculpture\r"]
["Identified as a need based on assessment outcome(s) (0***3)",0,0,0,null,"Fine Arts Abbreviated Feedback Template 2024-25.docx","Request 10: Add power drops and additional 220 outlets to the sculpture\r"]
["Number of students affected (0***3)",1,2,1,null,"Fine Arts Abbreviated Feedback Template 2024-25.docx","Request 10: Add power drops and additional 220 outlets to the sculpture\r"]
["Meets a safety or legislated mandate (0***3)",0,0,0,null,"Fine Arts Abbreviated Feedback Template 2024-25.docx","Request 10: Add power drops and additional 220 outlets to the sculpture\r"]
["Criticality of the request (0***3)",1,0,0,null,"Fine Arts Abbreviated Feedback Template 2024-25.docx","Request 10: Add power drops and additional 220 outlets to the sculpture\r"]
["Total (0***15)",2,2,1,{"$f":"AVERAGE(B391:D391)","v":1.6666666666666667},"Fine Arts Abbreviated Feedback Template 2024-25.docx","Request 10: Add power drops and additional 220 outlets to the sculpture\r"]
["Average:",1.6,null,null,null,"Fine Arts Abbreviated Feedback Template 2024-25.docx","Request 10: Add power drops and additional 220 outlets to the sculpture\r"]
[null,null,null,null,null,"Fine Arts Abbreviated Feedback Template 2024-25.docx","Request 10: Add power drops and additional 220 outlets to the sculpture\r"]
[null,null,null,null,null,"Fine Arts Abbreviated Feedback Template 2024-25.docx","Request 10: Add power drops and additional 220 outlets to the sculpture\r"]
["Reviewer","Colin Trujillo",null,null,null,"Fine Arts Abbreviated Feedback Template 2024-25.docx","Request 11: MIG welders are underpowered\r"]
[null,"Kyle Shamp",null,null,null,"Fine Arts Abbreviated Feedback Template 2024-25.docx","Request 11: MIG welders are underpowered\r"]
[null,"Bob Brown",null,null,null,"Fine Arts Abbreviated Feedback Template 2024-25.docx","Request 11: MIG welders are underpowered\r"]
["Alignment with an Institutional Goal or Institutional Objective (0***3)",0,0,0,null,"Fine Arts Abbreviated Feedback Template 2024-25.docx","Request 11: MIG welders are underpowered\r"]
["Identified as a need based on assessment outcome(s) (0***3)",0,0,0,null,"Fine Arts Abbreviated Feedback Template 2024-25.docx","Request 11: MIG welders are underpowered\r"]
["Number of students affected (0***3)",1,1,1,null,"Fine Arts Abbreviated Feedback Template 2024-25.docx","Request 11: MIG welders are underpowered\r"]
["Meets a safety or legislated mandate (0***3)",0,0,0,null,"Fine Arts Abbreviated Feedback Template 2024-25.docx","Request 11: MIG welders are underpowered\r"]
["Criticality of the request (0***3)",1,0,1,null,"Fine Arts Abbreviated Feedback Template 2024-25.docx","Request 11: MIG welders are underpowered\r"]
["Total (0***15)",2,1,2,{"$f":"AVERAGE(B403:D403)","v":1.6666666666666667},"Fine Arts Abbreviated Feedback Template 2024-25.docx","Request 11: MIG welders are underpowered\r"]
["Average:",1.3,null,null,null,"Fine Arts Abbreviated Feedback Template 2024-25.docx","Request 11: MIG welders are underpowered\r"]
[null,null,null,null,null,"Fine Arts Abbreviated Feedback Template 2024-25.docx","Request 11: MIG welders are underpowered\r"]
[null,null,null,null,null,"Fine Arts Abbreviated Feedback Template 2024-25.docx","Request 11: MIG welders are underpowered\r"]
["Reviewer","Colin Trujillo",null,null,null,"Fine Arts Abbreviated Feedback Template 2024-25.docx","Request 12: Adding capabilities to cut metal- MillerMatic Spectrum 375\r"]
[null,"Kyle Shamp",null,null,null,"Fine Arts Abbreviated Feedback Template 2024-25.docx","Request 12: Adding capabilities to cut metal- MillerMatic Spectrum 375\r"]
[null,"Bob Brown",null,null,null,"Fine Arts Abbreviated Feedback Template 2024-25.docx","Request 12: Adding capabilities to cut metal- MillerMatic Spectrum 375\r"]
["Alignment with an Institutional Goal or Institutional Objective (0***3)",0,0,0,null,"Fine Arts Abbreviated Feedback Template 2024-25.docx","Request 12: Adding capabilities to cut metal- MillerMatic Spectrum 375\r"]
["Identified as a need based on assessment outcome(s) (0***3)",0,0,0,null,"Fine Arts Abbreviated Feedback Template 2024-25.docx","Request 12: Adding capabilities to cut metal- MillerMatic Spectrum 375\r"]
["Number of students affected (0***3)",1,1,1,null,"Fine Arts Abbreviated Feedback Template 2024-25.docx","Request 12: Adding capabilities to cut metal- MillerMatic Spectrum 375\r"]
["Meets a safety or legislated mandate (0***3)",0,0,0,null,"Fine Arts Abbreviated Feedback Template 2024-25.docx","Request 12: Adding capabilities to cut metal- MillerMatic Spectrum 375\r"]
["Criticality of the request (0***3)",1,0,0,null,"Fine Arts Abbreviated Feedback Template 2024-25.docx","Request 12: Adding capabilities to cut metal- MillerMatic Spectrum 375\r"]
["Total (0***15)",2,1,1,{"$f":"AVERAGE(B415:D415)","v":1.3333333333333333},"Fine Arts Abbreviated Feedback Template 2024-25.docx","Request 12: Adding capabilities to cut metal- MillerMatic Spectrum 375\r"]
["Average:","1.3",null,null,null,"Fine Arts Abbreviated Feedback Template 2024-25.docx","Request 12: Adding capabilities to cut metal- MillerMatic Spectrum 375\r"]
[null,null,null,null,null,"Fine Arts Abbreviated Feedback Template 2024-25.docx","Request 12: Adding capabilities to cut metal- MillerMatic Spectrum 375\r"]
[null,null,null,null,null,"Fine Arts Abbreviated Feedback Template 2024-25.docx","Request 12: Adding capabilities to cut metal- MillerMatic Spectrum 375\r"]
["Reviewer","Colin Trujillo",null,null,null,"Fine Arts Abbreviated Feedback Template 2024-25.docx","Request 13: Students in 3D** Art 15** and Art17 need to be able to check out iPads - 5 iPads Pro +Apple Pencils\r"]
[null,"Kyle Shamp","Bob Brown",null,null,"Fine Arts Abbreviated Feedback Template 2024-25.docx","Request 13: Students in 3D** Art 15** and Art17 need to be able to check out iPads - 5 iPads Pro +Apple Pencils\r"]
["Alignment with an Institutional Goal or Institutional Objective (0***3)","0","0","0",null,"Fine Arts Abbreviated Feedback Template 2024-25.docx","Request 13: Students in 3D** Art 15** and Art17 need to be able to check out iPads - 5 iPads Pro +Apple Pencils\r"]
["Identified as a need based on assessment outcome(s) (0***3)","0","0","0",null,"Fine Arts Abbreviated Feedback Template 2024-25.docx","Request 13: Students in 3D** Art 15** and Art17 need to be able to check out iPads - 5 iPads Pro +Apple Pencils\r"]
["Number of students affected (0***3)",1,2,2,null,"Fine Arts Abbreviated Feedback Template 2024-25.docx","Request 13: Students in 3D** Art 15** and Art17 need to be able to check out iPads - 5 iPads Pro +Apple Pencils\r"]
["Meets a safety or legislated mandate (0***3)",0,0,0,null,"Fine Arts Abbreviated Feedback Template 2024-25.docx","Request 13: Students in 3D** Art 15** and Art17 need to be able to check out iPads - 5 iPads Pro +Apple Pencils\r"]
["Criticality of the request (0***3)",1,0,0,null,"Fine Arts Abbreviated Feedback Template 2024-25.docx","Request 13: Students in 3D** Art 15** and Art17 need to be able to check out iPads - 5 iPads Pro +Apple Pencils\r"]
["Total (0***15)",2,2,2,{"$f":"AVERAGE(B426:D426)","v":2},"Fine Arts Abbreviated Feedback Template 2024-25.docx","Request 13: Students in 3D** Art 15** and Art17 need to be able to check out iPads - 5 iPads Pro +Apple Pencils\r"]
["Average:",2,null,null,null,"Fine Arts Abbreviated Feedback Template 2024-25.docx","Request 13: Students in 3D** Art 15** and Art17 need to be able to check out iPads - 5 iPads Pro +Apple Pencils\r"]
[null,null,null,null,null,"Fine Arts Abbreviated Feedback Template 2024-25.docx","Request 13: Students in 3D** Art 15** and Art17 need to be able to check out iPads - 5 iPads Pro +Apple Pencils\r"]
[null,null,null,null,null,"Fine Arts Abbreviated Feedback Template 2024-25.docx","Request 13: Students in 3D** Art 15** and Art17 need to be able to check out iPads - 5 iPads Pro +Apple Pencils\r"]
[null,null,null,null,null,"Fine Arts Abbreviated Feedback Template 2024-25.docx","Request 13: Students in 3D** Art 15** and Art17 need to be able to check out iPads - 5 iPads Pro +Apple Pencils\r"]
["Reviewer","Kyle Shamp","Colin Trujillo ","Bob Brown",null,"FNR Abbreviated Feedback Template 2024-25.docx","Request 1: \r"]
["Alignment with an Institutional Goal or Institutional Objective (0***3)",3,3,3,null,"FNR Abbreviated Feedback Template 2024-25.docx","Request 1: \r"]
["Identified as a need based on assessment outcome(s) (0***3)",3,3,3,null,"FNR Abbreviated Feedback Template 2024-25.docx","Request 1: \r"]
["Number of students affected (0***3)",2,1,2,null,"FNR Abbreviated Feedback Template 2024-25.docx","Request 1: \r"]
["Meets a safety or legislated mandate (0***3)",1,0,0,null,"FNR Abbreviated Feedback Template 2024-25.docx","Request 1: \r"]
["Criticality of the request (0***3)",3,2,2,null,"FNR Abbreviated Feedback Template 2024-25.docx","Request 1: \r"]
["Total (0***15)",12,9,10,{"$f":"AVERAGE(B437:D437)","v":10.333333333333334},"FNR Abbreviated Feedback Template 2024-25.docx","Request 1: \r"]
["Average:",10.33,null,null,null,"FNR Abbreviated Feedback Template 2024-25.docx","Request 1: \r"]
[null,null,null,null,null,"FNR Abbreviated Feedback Template 2024-25.docx","Request 1: \r"]
[null,null,null,null,null,"FNR Abbreviated Feedback Template 2024-25.docx","Request 1: \r"]
[null,null,null,null,null,"FNR Abbreviated Feedback Template 2024-25.docx","Request 1: \r"]
[null,null,null,null,null,"FNR Abbreviated Feedback Template 2024-25.docx","Request 1: \r"]
["Reviewer","Kyle Shamp",null,null,null,"FNR Abbreviated Feedback Template 2024-25.docx","Request 2: \r"]
[null,"Colin Trujillo ","Bob Brown",null,null,"FNR Abbreviated Feedback Template 2024-25.docx","Request 2: \r"]
["Alignment with an Institutional Goal or Institutional Objective (0***3)",2,3,3,null,"FNR Abbreviated Feedback Template 2024-25.docx","Request 2: \r"]
["Identified as a need based on assessment outcome(s) (0***3)",1,1,1,null,"FNR Abbreviated Feedback Template 2024-25.docx","Request 2: \r"]
["Number of students affected (0***3)",2,1,1,null,"FNR Abbreviated Feedback Template 2024-25.docx","Request 2: \r"]
["Meets a safety or legislated mandate (0***3)",0,0,0,null,"FNR Abbreviated Feedback Template 2024-25.docx","Request 2: \r"]
["Criticality of the request (0***3)",1,1,1,null,"FNR Abbreviated Feedback Template 2024-25.docx","Request 2: \r"]
["Total (0***15)",6,6,6,{"$f":"AVERAGE(B450:D450)","v":6},"FNR Abbreviated Feedback Template 2024-25.docx","Request 2: \r"]
["Average:",6,null,null,null,"FNR Abbreviated Feedback Template 2024-25.docx","Request 2: \r"]
[null,null,null,null,null,"FNR Abbreviated Feedback Template 2024-25.docx","Request 2: \r"]
[null,null,null,null,null,"FNR Abbreviated Feedback Template 2024-25.docx","Request 2: \r"]
[null,null,null,null,null,"FNR Abbreviated Feedback Template 2024-25.docx","Request 2: \r"]
["Reviewer","Kyle Shamp",null,null,null,"FNR Abbreviated Feedback Template 2024-25.docx","Request 3: \r"]
[null,"Colin Trujillo ","Bob Brown",null,null,"FNR Abbreviated Feedback Template 2024-25.docx","Request 3: \r"]
["Alignment with an Institutional Goal or Institutional Objective (0***3)",3,3,3,null,"FNR Abbreviated Feedback Template 2024-25.docx","Request 3: \r"]
["Identified as a need based on assessment outcome(s) (0***3)",2,3,3,null,"FNR Abbreviated Feedback Template 2024-25.docx","Request 3: \r"]
["Number of students affected (0***3)",2,1,1,null,"FNR Abbreviated Feedback Template 2024-25.docx","Request 3: \r"]
["Meets a safety or legislated mandate (0***3)",0,0,0,null,"FNR Abbreviated Feedback Template 2024-25.docx","Request 3: \r"]
["Criticality of the request (0***3)",2,3,2,null,"FNR Abbreviated Feedback Template 2024-25.docx","Request 3: \r"]
["Total (0***15)",9,10,9,{"$f":"AVERAGE(B462:D462)","v":9.3333333333333339},"FNR Abbreviated Feedback Template 2024-25.docx","Request 3: \r"]
["Average:",9.66,null,null,null,"FNR Abbreviated Feedback Template 2024-25.docx","Request 3: \r"]
[null,null,null,null,null,"FNR Abbreviated Feedback Template 2024-25.docx","Request 3: \r"]
[null,null,null,null,null,"FNR Abbreviated Feedback Template 2024-25.docx","Request 3: \r"]
[null,null,null,null,null,"FNR Abbreviated Feedback Template 2024-25.docx","Request 3: \r"]
["Reviewer","elder","Haley",null,null,"Physical Science Abbreviated Feedback Template 2024-25.docx","Request 1: Mini-freezer + glass ware and thermometers as needed.\r"]
["Alignment with an Institutional Goal or Institutional Objective (0***3)",2,3,null,null,"Physical Science Abbreviated Feedback Template 2024-25.docx","Request 1: Mini-freezer + glass ware and thermometers as needed.\r"]
["Identified as a need based on assessment outcome(s) (0***3)",3,3,null,null,"Physical Science Abbreviated Feedback Template 2024-25.docx","Request 1: Mini-freezer + glass ware and thermometers as needed.\r"]
["Number of students affected (0***3)","1","1",null,null,"Physical Science Abbreviated Feedback Template 2024-25.docx","Request 1: Mini-freezer + glass ware and thermometers as needed.\r"]
["Meets a safety or legislated mandate (0***3)","0","0",null,null,"Physical Science Abbreviated Feedback Template 2024-25.docx","Request 1: Mini-freezer + glass ware and thermometers as needed.\r"]
["Criticality of the request (0***3)","1","2",null,null,"Physical Science Abbreviated Feedback Template 2024-25.docx","Request 1: Mini-freezer + glass ware and thermometers as needed.\r"]
[null,null,null,null,null,"Physical Science Abbreviated Feedback Template 2024-25.docx","Request 1: Mini-freezer + glass ware and thermometers as needed.\r"]
["Total (0***15)","7","9",null,{"$f":"(7+9)/2","v":8},"Physical Science Abbreviated Feedback Template 2024-25.docx","Request 1: Mini-freezer + glass ware and thermometers as needed.\r"]
["Average:","8",null,null,null,"Physical Science Abbreviated Feedback Template 2024-25.docx","Request 1: Mini-freezer + glass ware and thermometers as needed.\r"]
[null,null,null,null,null,"Physical Science Abbreviated Feedback Template 2024-25.docx","Request 1: Mini-freezer + glass ware and thermometers as needed.\r"]
[null,null,null,null,null,"Physical Science Abbreviated Feedback Template 2024-25.docx","Request 1: Mini-freezer + glass ware and thermometers as needed.\r"]
[null,null,null,null,null,"Physical Science Abbreviated Feedback Template 2024-25.docx","Request 1: Mini-freezer + glass ware and thermometers as needed.\r"]
["Reviewer","elder","Haley",null,null,"Physical Science Abbreviated Feedback Template 2024-25.docx","Request 2: Lapel microphones (2 or 3)\r"]
["Alignment with an Institutional Goal or Institutional Objective (0***3)","2","3",null,null,"Physical Science Abbreviated Feedback Template 2024-25.docx","Request 2: Lapel microphones (2 or 3)\r"]
["Identified as a need based on assessment outcome(s) (0***3)","3","3",null,null,"Physical Science Abbreviated Feedback Template 2024-25.docx","Request 2: Lapel microphones (2 or 3)\r"]
["Number of students affected (0***3)","1","1",null,null,"Physical Science Abbreviated Feedback Template 2024-25.docx","Request 2: Lapel microphones (2 or 3)\r"]
["Meets a safety or legislated mandate (0***3)"," 0","0",null,null,"Physical Science Abbreviated Feedback Template 2024-25.docx","Request 2: Lapel microphones (2 or 3)\r"]
["Criticality of the request (0***3)","1","2",null,null,"Physical Science Abbreviated Feedback Template 2024-25.docx","Request 2: Lapel microphones (2 or 3)\r"]
["Total (0***15)","7","9",null,{"$f":"(7+9)/2","v":8},"Physical Science Abbreviated Feedback Template 2024-25.docx","Request 2: Lapel microphones (2 or 3)\r"]
["Average:",null,null,null,null,"Physical Science Abbreviated Feedback Template 2024-25.docx","Request 2: Lapel microphones (2 or 3)\r"]
[null,null,null,null,null,"Physical Science Abbreviated Feedback Template 2024-25.docx","Request 2: Lapel microphones (2 or 3)\r"]
[null,null,null,null,null,"Physical Science Abbreviated Feedback Template 2024-25.docx","Request 2: Lapel microphones (2 or 3)\r"]
[null,null,null,null,null,"Physical Science Abbreviated Feedback Template 2024-25.docx","Request 2: Lapel microphones (2 or 3)\r"]
[null,null,null,null,null,"Physical Science Abbreviated Feedback Template 2024-25.docx","Request 2: Lapel microphones (2 or 3)\r"]
["Reviewer","elder","Haley",null,null,"Physical Science Abbreviated Feedback Template 2024-25.docx","Request 3: Centimeter tape measures\r"]
["Alignment with an Institutional Goal or Institutional Objective (0***3)","2","3",null,null,"Physical Science Abbreviated Feedback Template 2024-25.docx","Request 3: Centimeter tape measures\r"]
["Identified as a need based on assessment outcome(s) (0***3)","3","3",null,null,"Physical Science Abbreviated Feedback Template 2024-25.docx","Request 3: Centimeter tape measures\r"]
["Number of students affected (0***3)","1","1",null,null,"Physical Science Abbreviated Feedback Template 2024-25.docx","Request 3: Centimeter tape measures\r"]
["Meets a safety or legislated mandate (0***3)","0","0",null,null,"Physical Science Abbreviated Feedback Template 2024-25.docx","Request 3: Centimeter tape measures\r"]
["Criticality of the request (0***3)","1","1",null,null,"Physical Science Abbreviated Feedback Template 2024-25.docx","Request 3: Centimeter tape measures\r"]
["Total (0***15)","7","8",null,{"$f":"(7+8)/2","v":7.5},"Physical Science Abbreviated Feedback Template 2024-25.docx","Request 3: Centimeter tape measures\r"]
["Average:","7.5",null,null,null,"Physical Science Abbreviated Feedback Template 2024-25.docx","Request 3: Centimeter tape measures\r"]
[null,null,null,null,null,"Physical Science Abbreviated Feedback Template 2024-25.docx","Request 3: Centimeter tape measures\r"]
[null,null,null,null,null,"Physical Science Abbreviated Feedback Template 2024-25.docx","Request 3: Centimeter tape measures\r"]
[null,null,null,null,null,"Physical Science Abbreviated Feedback Template 2024-25.docx","Request 3: Centimeter tape measures\r"]
[null,null,null,null,null,"Physical Science Abbreviated Feedback Template 2024-25.docx","Request 3: Centimeter tape measures\r"]
["Reviewer","elder","Haley",null,null,"Physical Science Abbreviated Feedback Template 2024-25.docx","Request 4: Klinger X-ray apparatus Mo** complete 554 801** Cu X-ray tube 554 862** LiF crystal for Bragg reflection 554 77** and Compton accessory X-ray 554 836. \r"]
["Alignment with an Institutional Goal or Institutional Objective (0***3)",2,3,null,null,"Physical Science Abbreviated Feedback Template 2024-25.docx","Request 4: Klinger X-ray apparatus Mo** complete 554 801** Cu X-ray tube 554 862** LiF crystal for Bragg reflection 554 77** and Compton accessory X-ray 554 836. \r"]
["Identified as a need based on assessment outcome(s) (0***3)",3,3,null,null,"Physical Science Abbreviated Feedback Template 2024-25.docx","Request 4: Klinger X-ray apparatus Mo** complete 554 801** Cu X-ray tube 554 862** LiF crystal for Bragg reflection 554 77** and Compton accessory X-ray 554 836. \r"]
["Number of students affected (0***3)",1,1,null,null,"Physical Science Abbreviated Feedback Template 2024-25.docx","Request 4: Klinger X-ray apparatus Mo** complete 554 801** Cu X-ray tube 554 862** LiF crystal for Bragg reflection 554 77** and Compton accessory X-ray 554 836. \r"]
["Meets a safety or legislated mandate (0***3)",0,0,null,null,"Physical Science Abbreviated Feedback Template 2024-25.docx","Request 4: Klinger X-ray apparatus Mo** complete 554 801** Cu X-ray tube 554 862** LiF crystal for Bragg reflection 554 77** and Compton accessory X-ray 554 836. \r"]
["Criticality of the request (0***3)",1,1,null,null,"Physical Science Abbreviated Feedback Template 2024-25.docx","Request 4: Klinger X-ray apparatus Mo** complete 554 801** Cu X-ray tube 554 862** LiF crystal for Bragg reflection 554 77** and Compton accessory X-ray 554 836. \r"]
["Total (0***15)",7,8,null,{"$f":"AVERAGE(B509:D509)","v":7.5},"Physical Science Abbreviated Feedback Template 2024-25.docx","Request 4: Klinger X-ray apparatus Mo** complete 554 801** Cu X-ray tube 554 862** LiF crystal for Bragg reflection 554 77** and Compton accessory X-ray 554 836. \r"]
["Average:",7.5,null,null,null,"Physical Science Abbreviated Feedback Template 2024-25.docx","Request 4: Klinger X-ray apparatus Mo** complete 554 801** Cu X-ray tube 554 862** LiF crystal for Bragg reflection 554 77** and Compton accessory X-ray 554 836. \r"]
[null,null,null,null,null,"Physical Science Abbreviated Feedback Template 2024-25.docx","Request 4: Klinger X-ray apparatus Mo** complete 554 801** Cu X-ray tube 554 862** LiF crystal for Bragg reflection 554 77** and Compton accessory X-ray 554 836. \r"]
[null,null,null,null,null,"Physical Science Abbreviated Feedback Template 2024-25.docx","Request 4: Klinger X-ray apparatus Mo** complete 554 801** Cu X-ray tube 554 862** LiF crystal for Bragg reflection 554 77** and Compton accessory X-ray 554 836. \r"]
[null,null,null,null,null,"Physical Science Abbreviated Feedback Template 2024-25.docx","Request 4: Klinger X-ray apparatus Mo** complete 554 801** Cu X-ray tube 554 862** LiF crystal for Bragg reflection 554 77** and Compton accessory X-ray 554 836. \r"]
[null,null,null,null,null,"Physical Science Abbreviated Feedback Template 2024-25.docx","Request 4: Klinger X-ray apparatus Mo** complete 554 801** Cu X-ray tube 554 862** LiF crystal for Bragg reflection 554 77** and Compton accessory X-ray 554 836. \r"]
["Reviewer","elder","Haley",null,null,"Physical Science Abbreviated Feedback Template 2024-25.docx","\u000bRequest 5: Two set ups comprising Pasco's Adiabatic Gas Law Apparatus** Ideal Gal Law Apparatus** and a Replacement Glass Tube \r"]
["Alignment with an Institutional Goal or Institutional Objective (0***3)",2,3,null,null,"Physical Science Abbreviated Feedback Template 2024-25.docx","\u000bRequest 5: Two set ups comprising Pasco's Adiabatic Gas Law Apparatus** Ideal Gal Law Apparatus** and a Replacement Glass Tube \r"]
["Identified as a need based on assessment outcome(s) (0***3)",3,3,null,null,"Physical Science Abbreviated Feedback Template 2024-25.docx","\u000bRequest 5: Two set ups comprising Pasco's Adiabatic Gas Law Apparatus** Ideal Gal Law Apparatus** and a Replacement Glass Tube \r"]
["Number of students affected (0***3)",1,1,null,null,"Physical Science Abbreviated Feedback Template 2024-25.docx","\u000bRequest 5: Two set ups comprising Pasco's Adiabatic Gas Law Apparatus** Ideal Gal Law Apparatus** and a Replacement Glass Tube \r"]
["Meets a safety or legislated mandate (0***3)",0,0,null,null,"Physical Science Abbreviated Feedback Template 2024-25.docx","\u000bRequest 5: Two set ups comprising Pasco's Adiabatic Gas Law Apparatus** Ideal Gal Law Apparatus** and a Replacement Glass Tube \r"]
["Criticality of the request (0***3)",1,1,null,null,"Physical Science Abbreviated Feedback Template 2024-25.docx","\u000bRequest 5: Two set ups comprising Pasco's Adiabatic Gas Law Apparatus** Ideal Gal Law Apparatus** and a Replacement Glass Tube \r"]
["Total (0***15)",7,8,null,{"$f":"AVERAGE(B521:D521)","v":7.5},"Physical Science Abbreviated Feedback Template 2024-25.docx","\u000bRequest 5: Two set ups comprising Pasco's Adiabatic Gas Law Apparatus** Ideal Gal Law Apparatus** and a Replacement Glass Tube \r"]
["Average:",7.5,null,null,null,"Physical Science Abbreviated Feedback Template 2024-25.docx","\u000bRequest 5: Two set ups comprising Pasco's Adiabatic Gas Law Apparatus** Ideal Gal Law Apparatus** and a Replacement Glass Tube \r"]
[null,null,null,null,null,"Physical Science Abbreviated Feedback Template 2024-25.docx","\u000bRequest 5: Two set ups comprising Pasco's Adiabatic Gas Law Apparatus** Ideal Gal Law Apparatus** and a Replacement Glass Tube \r"]
[null,null,null,null,null,"Physical Science Abbreviated Feedback Template 2024-25.docx","\u000bRequest 5: Two set ups comprising Pasco's Adiabatic Gas Law Apparatus** Ideal Gal Law Apparatus** and a Replacement Glass Tube \r"]
[null,null,null,null,null,"Physical Science Abbreviated Feedback Template 2024-25.docx","\u000bRequest 5: Two set ups comprising Pasco's Adiabatic Gas Law Apparatus** Ideal Gal Law Apparatus** and a Replacement Glass Tube \r"]
[null,null,null,null,null,"Physical Science Abbreviated Feedback Template 2024-25.docx","\u000bRequest 5: Two set ups comprising Pasco's Adiabatic Gas Law Apparatus** Ideal Gal Law Apparatus** and a Replacement Glass Tube \r"]
["Reviewer","Kelly Carbone","Ross","Misty",null,"RN Abbreviated Feedback Template 2024-25.docx","Request 1: Faculty development training to certify as Simulation Specialists (at least one person at each campus)\r"]
["Alignment with an Institutional Goal or Institutional Objective (0***3)",3,3,3,null,"RN Abbreviated Feedback Template 2024-25.docx","Request 1: Faculty development training to certify as Simulation Specialists (at least one person at each campus)\r"]
["Identified as a need based on assessment outcome(s) (0***3)",3,2,3,null,"RN Abbreviated Feedback Template 2024-25.docx","Request 1: Faculty development training to certify as Simulation Specialists (at least one person at each campus)\r"]
["Number of students affected (0***3)",2,2,2,null,"RN Abbreviated Feedback Template 2024-25.docx","Request 1: Faculty development training to certify as Simulation Specialists (at least one person at each campus)\r"]
["Meets a safety or legislated mandate (0***3)",3,3,3,null,"RN Abbreviated Feedback Template 2024-25.docx","Request 1: Faculty development training to certify as Simulation Specialists (at least one person at each campus)\r"]
["Criticality of the request (0***3)",3,3,3,null,"RN Abbreviated Feedback Template 2024-25.docx","Request 1: Faculty development training to certify as Simulation Specialists (at least one person at each campus)\r"]
["Total (0***15)",14,13,14,{"$f":"AVERAGE(B533:D533)","v":13.666666666666666},"RN Abbreviated Feedback Template 2024-25.docx","Request 1: Faculty development training to certify as Simulation Specialists (at least one person at each campus)\r"]
["Average:",13.66,null,null,null,"RN Abbreviated Feedback Template 2024-25.docx","Request 1: Faculty development training to certify as Simulation Specialists (at least one person at each campus)\r"]
[null,null,null,null,null,"RN Abbreviated Feedback Template 2024-25.docx","Request 1: Faculty development training to certify as Simulation Specialists (at least one person at each campus)\r"]
[null,null,null,null,null,"RN Abbreviated Feedback Template 2024-25.docx","Request 1: Faculty development training to certify as Simulation Specialists (at least one person at each campus)\r"]
[null,null,null,null,null,"RN Abbreviated Feedback Template 2024-25.docx","Request 1: Faculty development training to certify as Simulation Specialists (at least one person at each campus)\r"]
[null,null,null,null,null,"RN Abbreviated Feedback Template 2024-25.docx","Request 1: Faculty development training to certify as Simulation Specialists (at least one person at each campus)\r"]
["Reviewer","Kelly Carbone","Ross","Misty",null,"RN Abbreviated Feedback Template 2024-25.docx","Request 2: Full-time clinical site scheduler and coordinator\r"]
["Alignment with an Institutional Goal or Institutional Objective (0***3)",2,1,2,null,"RN Abbreviated Feedback Template 2024-25.docx","Request 2: Full-time clinical site scheduler and coordinator\r"]
["Identified as a need based on assessment outcome(s) (0***3)",1,1,1,null,"RN Abbreviated Feedback Template 2024-25.docx","Request 2: Full-time clinical site scheduler and coordinator\r"]
["Number of students affected (0***3)",2,2,2,null,"RN Abbreviated Feedback Template 2024-25.docx","Request 2: Full-time clinical site scheduler and coordinator\r"]
["Meets a safety or legislated mandate (0***3)",0,0,0,null,"RN Abbreviated Feedback Template 2024-25.docx","Request 2: Full-time clinical site scheduler and coordinator\r"]
["Criticality of the request (0***3)",1,1,2,null,"RN Abbreviated Feedback Template 2024-25.docx","Request 2: Full-time clinical site scheduler and coordinator\r"]
["Total (0***15)",6,5,7,{"$f":"AVERAGE(B545:D545)","v":6},"RN Abbreviated Feedback Template 2024-25.docx","Request 2: Full-time clinical site scheduler and coordinator\r"]
["Average:",6,null,null,null,"RN Abbreviated Feedback Template 2024-25.docx","Request 2: Full-time clinical site scheduler and coordinator\r"]
[null,null,null,null,null,"RN Abbreviated Feedback Template 2024-25.docx","Request 2: Full-time clinical site scheduler and coordinator\r"]
[null,null,null,null,null,"RN Abbreviated Feedback Template 2024-25.docx","Request 2: Full-time clinical site scheduler and coordinator\r"]
[null,null,null,null,null,"RN Abbreviated Feedback Template 2024-25.docx","Request 2: Full-time clinical site scheduler and coordinator\r"]
[null,null,null,null,null,"RN Abbreviated Feedback Template 2024-25.docx","Request 2: Full-time clinical site scheduler and coordinator\r"]
["Reviewer","Kelly Carbone","Ross","Misty",null,"RN Abbreviated Feedback Template 2024-25.docx","Request 3: Increase tech from part-time to full-time on both campuses\r"]
["Alignment with an Institutional Goal or Institutional Objective (0***3)",2,2,2,null,"RN Abbreviated Feedback Template 2024-25.docx","Request 3: Increase tech from part-time to full-time on both campuses\r"]
["Identified as a need based on assessment outcome(s) (0***3)",3,2,2,null,"RN Abbreviated Feedback Template 2024-25.docx","Request 3: Increase tech from part-time to full-time on both campuses\r"]
["Number of students affected (0***3)",2,2,2,null,"RN Abbreviated Feedback Template 2024-25.docx","Request 3: Increase tech from part-time to full-time on both campuses\r"]
["Meets a safety or legislated mandate (0***3)",2,0,1,null,"RN Abbreviated Feedback Template 2024-25.docx","Request 3: Increase tech from part-time to full-time on both campuses\r"]
["Criticality of the request (0***3)",3,2,2,null,"RN Abbreviated Feedback Template 2024-25.docx","Request 3: Increase tech from part-time to full-time on both campuses\r"]
["Total (0***15)",12,8,9,{"$f":"AVERAGE(B557:D557)","v":9.6666666666666661},"RN Abbreviated Feedback Template 2024-25.docx","Request 3: Increase tech from part-time to full-time on both campuses\r"]
["Average:",9.66,null,null,null,"RN Abbreviated Feedback Template 2024-25.docx","Request 3: Increase tech from part-time to full-time on both campuses\r"]
[null,null,null,null,null,"RN Abbreviated Feedback Template 2024-25.docx","Request 3: Increase tech from part-time to full-time on both campuses\r"]
[null,null,null,null,null,"RN Abbreviated Feedback Template 2024-25.docx","Request 3: Increase tech from part-time to full-time on both campuses\r"]
[null,null,null,null,null,"RN Abbreviated Feedback Template 2024-25.docx","Request 3: Increase tech from part-time to full-time on both campuses\r"]
[null,null,null,null,null,"RN Abbreviated Feedback Template 2024-25.docx","Request 3: Increase tech from part-time to full-time on both campuses\r"]
["Reviewer","Kelly Carbone","Ross","Misty",null,"RN Abbreviated Feedback Template 2024-25.docx","Request 4: Increase lecture and skills lab space on both campuses\r"]
["Alignment with an Institutional Goal or Institutional Objective (0***3)",3,3,3,null,"RN Abbreviated Feedback Template 2024-25.docx","Request 4: Increase lecture and skills lab space on both campuses\r"]
["Identified as a need based on assessment outcome(s) (0***3)",2,3,3,null,"RN Abbreviated Feedback Template 2024-25.docx","Request 4: Increase lecture and skills lab space on both campuses\r"]
["Number of students affected (0***3)",2,2,2,null,"RN Abbreviated Feedback Template 2024-25.docx","Request 4: Increase lecture and skills lab space on both campuses\r"]
["Meets a safety or legislated mandate (0***3)",1,2,2,null,"RN Abbreviated Feedback Template 2024-25.docx","Request 4: Increase lecture and skills lab space on both campuses\r"]
["Criticality of the request (0***3)",1,3,2,null,"RN Abbreviated Feedback Template 2024-25.docx","Request 4: Increase lecture and skills lab space on both campuses\r"]
["Total (0***15)",9,13,12,{"$f":"AVERAGE(B569:D569)","v":11.333333333333334},"RN Abbreviated Feedback Template 2024-25.docx","Request 4: Increase lecture and skills lab space on both campuses\r"]
["Average:",11.3,null,null,null,"RN Abbreviated Feedback Template 2024-25.docx","Request 4: Increase lecture and skills lab space on both campuses\r"]
[null,null,null,null,null,"RN Abbreviated Feedback Template 2024-25.docx","Request 4: Increase lecture and skills lab space on both campuses\r"]
[null,null,null,null,null,"RN Abbreviated Feedback Template 2024-25.docx","Request 4: Increase lecture and skills lab space on both campuses\r"]
[null,null,null,null,null,"RN Abbreviated Feedback Template 2024-25.docx","Request 4: Increase lecture and skills lab space on both campuses\r"]
[null,null,null,null,null,"RN Abbreviated Feedback Template 2024-25.docx","Request 4: Increase lecture and skills lab space on both campuses\r"]
["Reviewer","Colin Trujillo ","Bob Brown","Kyle Shamp",null,"WCE Abbreviated Feedback Template 2024-25.docx","Request 1: Assistant Director** ACCE\r"]
["Alignment with an Institutional Goal or Institutional Objective (0***3)",0,1,0,null,"WCE Abbreviated Feedback Template 2024-25.docx","Request 1: Assistant Director** ACCE\r"]
["Identified as a need based on assessment outcome(s) (0***3)",0,0,0,null,"WCE Abbreviated Feedback Template 2024-25.docx","Request 1: Assistant Director** ACCE\r"]
["Number of students affected (0***3)",2,2,2,null,"WCE Abbreviated Feedback Template 2024-25.docx","Request 1: Assistant Director** ACCE\r"]
["Meets a safety or legislated mandate (0***3)",0,0,0,null,"WCE Abbreviated Feedback Template 2024-25.docx","Request 1: Assistant Director** ACCE\r"]
["Criticality of the request (0***3)",1,2,1,null,"WCE Abbreviated Feedback Template 2024-25.docx","Request 1: Assistant Director** ACCE\r"]
["Total (0***15)",3,5,3,{"$f":"AVERAGE(B581:D581)","v":3.6666666666666665},"WCE Abbreviated Feedback Template 2024-25.docx","Request 1: Assistant Director** ACCE\r"]
["Average:",3.66,null,null,null,"WCE Abbreviated Feedback Template 2024-25.docx","Request 1: Assistant Director** ACCE\r"]
[null,null,null,null,null,"WCE Abbreviated Feedback Template 2024-25.docx","Request 1: Assistant Director** ACCE\r"]
[null,null,null,null,null,"WCE Abbreviated Feedback Template 2024-25.docx","Request 1: Assistant Director** ACCE\r"]
[null,null,null,null,null,"WCE Abbreviated Feedback Template 2024-25.docx","Request 1: Assistant Director** ACCE\r"]
[null,null,null,null,null,"WCE Abbreviated Feedback Template 2024-25.docx","Request 1: Assistant Director** ACCE\r"]
["Reviewer","Anibal","Valerie",null,null,"Welding Abbreviated Feedback Template 2024-25.docx","Request 1: Additional full-time faculty\r"]
["Alignment with an Institutional Goal or Institutional Objective (0***3)",2,2,null,null,"Welding Abbreviated Feedback Template 2024-25.docx","Request 1: Additional full-time faculty\r"]
["Identified as a need based on assessment outcome(s) (0***3)",2,2,null,null,"Welding Abbreviated Feedback Template 2024-25.docx","Request 1: Additional full-time faculty\r"]
["Number of students affected (0***3)",1,1,null,null,"Welding Abbreviated Feedback Template 2024-25.docx","Request 1: Additional full-time faculty\r"]
["Meets a safety or legislated mandate (0***3)",1,1,null,null,"Welding Abbreviated Feedback Template 2024-25.docx","Request 1: Additional full-time faculty\r"]
["Criticality of the request (0***3)",3,3,null,null,"Welding Abbreviated Feedback Template 2024-25.docx","Request 1: Additional full-time faculty\r"]
["Total (0***15)",9,9,null,{"$f":"AVERAGE(B593:D593)","v":9},"Welding Abbreviated Feedback Template 2024-25.docx","Request 1: Additional full-time faculty\r"]
["Average:",9,null,null,null,"Welding Abbreviated Feedback Template 2024-25.docx","Request 1: Additional full-time faculty\r"]
[null,null,null,null,null,"Welding Abbreviated Feedback Template 2024-25.docx","Request 1: Additional full-time faculty\r"]
[null,null,null,null,null,"Welding Abbreviated Feedback Template 2024-25.docx","Request 1: Additional full-time faculty\r"]
[null,null,null,null,null,"Welding Abbreviated Feedback Template 2024-25.docx","Request 1: Additional full-time faculty\r"]
[null,null,null,null,null,"Welding Abbreviated Feedback Template 2024-25.docx","Request 1: Additional full-time faculty\r"]
["Reviewer","Anibal","Valerie",null,null,"Welding Abbreviated Feedback Template 2024-25.docx"]
["Alignment with an Institutional Goal or Institutional Objective (0***3)",3,3,null,null,"Welding Abbreviated Feedback Template 2024-25.docx"]
["Identified as a need based on assessment outcome(s) (0***3)",2,2,null,null,"Welding Abbreviated Feedback Template 2024-25.docx"]
["Number of students affected (0***3)",1,1,null,null,"Welding Abbreviated Feedback Template 2024-25.docx"]
["Meets a safety or legislated mandate (0***3)",1,1,null,null,"Welding Abbreviated Feedback Template 2024-25.docx"]
["Criticality of the request (0***3)",3,3,null,null,"Welding Abbreviated Feedback Template 2024-25.docx"]
["Total (0***15)",10,10,null,{"$f":"AVERAGE(B605:D605)","v":10},"Welding Abbreviated Feedback Template 2024-25.docx","Request 2 - 7: welding cable leads, Torches, and Welder"]
["Average:",10,null,null,null,"Welding Abbreviated Feedback Template 2024-25.docx"]
[null,null,null,null,null,"Welding Abbreviated Feedback Template 2024-25.docx"]
[null,null,null,null,null,"Welding Abbreviated Feedback Template 2024-25.docx"]
[null,null,null,null,null,"Welding Abbreviated Feedback Template 2024-25.docx"]
[null,null,null,null,null,"Welding Abbreviated Feedback Template 2024-25.docx"]
["Reviewer","Anibal","Valerie",null,null,"Welding Abbreviated Feedback Template 2024-25.docx"]
["Alignment with an Institutional Goal or Institutional Objective (0***3)",1,2,null,null,"Welding Abbreviated Feedback Template 2024-25.docx"]
["Identified as a need based on assessment outcome(s) (0***3)",1,1,null,null,"Welding Abbreviated Feedback Template 2024-25.docx"]
["Number of students affected (0***3)",1,1,null,null,"Welding Abbreviated Feedback Template 2024-25.docx"]
["Meets a safety or legislated mandate (0***3)",3,3,null,null,"Welding Abbreviated Feedback Template 2024-25.docx"]
["Criticality of the request (0***3)",3,3,null,null,"Welding Abbreviated Feedback Template 2024-25.docx"]
["Total (0***15)",9,10,null,{"$f":"AVERAGE(B617:D617)","v":9.5},"Welding Abbreviated Feedback Template 2024-25.docx","Request 8: Jacket and gloves replacement"]
["Average:",9.5,null,null,null,"Welding Abbreviated Feedback Template 2024-25.docx"]
[null,null,null,null,null,"Welding Abbreviated Feedback Template 2024-25.docx"]
[null,null,null,null,null,"Welding Abbreviated Feedback Template 2024-25.docx"]
[null,null,null,null,null,"Welding Abbreviated Feedback Template 2024-25.docx"]
[null,null,null,null,null,"Welding Abbreviated Feedback Template 2024-25.docx"]
["Reviewer","Anibal","Valerie",null,null,"Welding Abbreviated Feedback Template 2024-25.docx"]
["Alignment with an Institutional Goal or Institutional Objective (0***3)",1,1,null,null,"Welding Abbreviated Feedback Template 2024-25.docx"]
["Identified as a need based on assessment outcome(s) (0***3)",0,0,null,null,"Welding Abbreviated Feedback Template 2024-25.docx"]
["Number of students affected (0***3)",1,1,null,null,"Welding Abbreviated Feedback Template 2024-25.docx"]
["Meets a safety or legislated mandate (0***3)",1,1,null,null,"Welding Abbreviated Feedback Template 2024-25.docx"]
["Criticality of the request (0***3)",1,1,null,null,"Welding Abbreviated Feedback Template 2024-25.docx"]
["Total (0***15)",5,5,null,{"$f":"AVERAGE(B629:D629)","v":5},"Welding Abbreviated Feedback Template 2024-25.docx","Request 9 - 10: Grinders "]
["Average:",5,null,null,null,"Welding Abbreviated Feedback Template 2024-25.docx"]
[null,null,null,null,null,"Welding Abbreviated Feedback Template 2024-25.docx"]
[null,null,null,null,null,"Welding Abbreviated Feedback Template 2024-25.docx"]
[null,null,null,null,null,"Welding Abbreviated Feedback Template 2024-25.docx"]
[null,null,null,null,null,"Welding Abbreviated Feedback Template 2024-25.docx"]
["Reviewer","Anibal","Valerie",null,null,"Welding Abbreviated Feedback Template 2024-25.docx"]
["Alignment with an Institutional Goal or Institutional Objective (0***3)",3,3,null,null,"Welding Abbreviated Feedback Template 2024-25.docx"]
["Identified as a need based on assessment outcome(s) (0***3)",3,3,null,null,"Welding Abbreviated Feedback Template 2024-25.docx"]
["Number of students affected (0***3)",1,1,null,null,"Welding Abbreviated Feedback Template 2024-25.docx"]
["Meets a safety or legislated mandate (0***3)",3,3,null,null,"Welding Abbreviated Feedback Template 2024-25.docx"]
["Criticality of the request (0***3)",3,3,null,null,"Welding Abbreviated Feedback Template 2024-25.docx"]
["Total (0***15)",13,13,null,{"$f":"AVERAGE(B641:D641)","v":13},"Welding Abbreviated Feedback Template 2024-25.docx","Request 11 - 14: Various Welders and Fume Extractor"]
["Average:",13,null,null,null,"Welding Abbreviated Feedback Template 2024-25.docx"]
[null,null,null,null,null,"Welding Abbreviated Feedback Template 2024-25.docx"]
[null,null,null,null,null,"Welding Abbreviated Feedback Template 2024-25.docx"]
[null,null,null,null,null,"Welding Abbreviated Feedback Template 2024-25.docx"]
[null,null,null,null,null,"Welding Abbreviated Feedback Template 2024-25.docx"]

{"sheet":"Resource Request Rank","index":2,"n_rows":65,"n_cols":2,"rows_kept":65,"cut":false,"hidden":false,"merged":[]}
[]
[]
["Program","Average rankings"]
["Athletics Abbreviated "]
["Request 4: Hudl Film share / stats\n",14]
["Request 1: 2-4 Large passenger vans\r",15]
["Request 2: 50-60 passenger bus\r",15]
["Request 3: Track Field Equipment\r",10]
["Request 5: Athletic website upgrades\r",7.5]
["Auto Tech Abbreviated "]
["Request 1: (I’m adding up all the equipment costs here) Alignment machine** Battery lift** inspection harness** used engines** etc at $97**203.43 one-time costs\r",13.5]
["Request 2: Accommodate our growing program and satisfy ASE accreditation recommendations on use of available space by combining AT-128 and AT-132 into one larger room. (Facilities** cost unknown)\r",13.5]
["Request 3: 20 more hours for our AT ISS (personnel** cost unknown)\r",10.5]
["Request 4: Access to entry-level ASE certification examination AND update training for automotive faculty per accreditation standard. $6**000 each year\r",12.5]
["Basic Needs Abbreviated "]
["Request 1: Retention specialist salary/benefits for class visits and proactive inreach\r",11.333333333333334]
["Request 2: Privacy booth for BNC case management (this plan has been retracted due to fire code construction needs)\r",6.5]
["Request 3: Internet splitter setup (for second staff work station)\r",7.333333333333333]
["Dental Abbreviated "]
["Request 1: Instructional Aide\r",11]
["Request 2: Compressor replacement for original compressor from Measure Q funds in 2008\r",7.666666666666667]
["Request 3: Vacuum replacement for original vacuum (suction) from Measure Q in 2008\r",7.666666666666667]
["Distance Ed Abbreviated "]
["Request 1: rural Student Outreach & Support 9satellite learning support site)\r",9.5]
["Request 2: AI & Rumi Software\r",10.5]
["Request 3: Development\r",9]
["Request 4: Accessibility Capacity Project\r",12.5]
["Request 5: Canvas Admin Professional Development\r",9]
["Fine Arts Abbreviated "]
["Request 1: Improve storage infrastructure in the building to make it equivalent to the items that we had in the old creative arts.\r",11.333333333333334]
["Request 10: Add power drops and additional 220 outlets to the sculpture\r",1.6666666666666667]
["Request 11: MIG welders are underpowered\r",1.6666666666666667]
["Request 12: Adding capabilities to cut metal- MillerMatic Spectrum 375\r",1.3333333333333333]
["Request 13: Students in 3D** Art 15** and Art17 need to be able to check out iPads - 5 iPads Pro +Apple Pencils\r",2]
["Request 2: Install sound dampening in all art studios.\r",4.333333333333333]
["Request 3: Replace the outdated iMac computers in rooms 102** 104**\r",3.3333333333333335]
["Request 4: Update the Still Life objects and Fabric collection.\r",2.6666666666666665]
["Request 5: Purchase 1 more doc camera for room 104.\r",2.3333333333333335]
["Request 6: Purchase and install pegboard for room 102 to better assist\r",1.3333333333333333]
["Request 7: CR Painting and Drawing students need lockers.\r",2]
["Request 8: Electric kilns\r",2]
["Request 9: raku kiln\r",2.3333333333333335]
["FNR Abbreviated "]
["Request 1: Provide innovative, safe and equitable access to learning opportunities to stay relevant with the rapidly changing technological needs in Natural Resources for student support in the FNR program\n ",10.333333333333334]
["Request 2: Increase wraparound services available to FNR tohelp increase FNR student success and programviability and faculty support.",6]
["Request 3: Program Recruitment: Increase awareness of FNR and Geomatics in the community. Increase program completers. Increase program offerings of Geomatics\n ",9.3333333333333339]
["Physical Science Abbreviated "]
["Request 5: Two set ups comprising Pasco's Adiabatic Gas Law Apparatus** Ideal Gal Law Apparatus** and a Replacement Glass Tube \n",7.5]
["Request 1: Mini-freezer + glass ware and thermometers as needed.\r",8]
["Request 2: Lapel microphones (2 or 3)\r",8]
["Request 3: Centimeter tape measures\r",7.5]
["Request 4: Klinger X-ray apparatus Mo** complete 554 801** Cu X-ray tube 554 862** LiF crystal for Bragg reflection 554 77** and Compton accessory X-ray 554 836. \r",7.5]
["RN Abbreviated "]
["Request 1: Faculty development training to certify as Simulation Specialists (at least one person at each campus)\r",13.666666666666666]
["Request 2: Full-time clinical site scheduler and coordinator\r",6]
["Request 3: Increase tech from part-time to full-time on both campuses\r",9.6666666666666661]
["Request 4: Increase lecture and skills lab space on both campuses\r",11.333333333333334]
["WCE Abbreviated "]
["Request 1: Assistant Director** ACCE\r",3.6666666666666665]
["Welding Abbreviated "]
["Request 1: Additional full-time faculty\r",9]
["Request 2 - 7: welding cable leads, Torches, and Welder",10]
["Request 8: Jacket and gloves replacement",9.5]
["Request 9 - 10: Grinders ",5]
["Request 11 - 14: Various Welders and Fume Extractor",13]

{"sheet":"Sheet4","index":3,"n_rows":52,"n_cols":7,"rows_kept":52,"cut":false,"hidden":true,"merged":[]}
["Criteria","R1","R2","R3","Avg ","Program","Request # and Description"]
["Total (0***15)","15","15",null,15,"Athletics Abbreviated Feedback Template 2024-25.docx","Request 1: 2-4 Large passenger vans\r"]
["Total (0***15)",15,15,null,15,"Athletics Abbreviated Feedback Template 2024-25.docx","Request 2: 50-60 passenger bus\r"]
["Total (0***15)",10,10,null,10,"Athletics Abbreviated Feedback Template 2024-25.docx","Request 3: Track Field Equipment\r"]
["Total (0***15)",14,14,null,14,"Athletics Abbreviated Feedback Template 2024-25.docx","\u000bRequest 4: Hudl Film share / stats\r"]
["Total (0***15)",7,8,null,7.5,"Athletics Abbreviated Feedback Template 2024-25.docx","Request 5: Athletic website upgrades\r"]
["Total (0***15)",14,13,null,13.5,"Auto Tech Abbreviated Feedback Template 2024-25.docx","Request 1: (I’m adding up all the equipment costs here) Alignment machine** Battery lift** inspection harness** used engines** etc at $97**203.43 one-time costs\r"]
["Total (0***15)",14,13,null,13.5,"Auto Tech Abbreviated Feedback Template 2024-25.docx","Request 2: Accommodate our growing program and satisfy ASE accreditation recommendations on use of available space by combining AT-128 and AT-132 into one larger room. (Facilities** cost unknown)\r"]
["Total (0***15)",11,10,null,10.5,"Auto Tech Abbreviated Feedback Template 2024-25.docx","Request 3: 20 more hours for our AT ISS (personnel** cost unknown)\r"]
["Total (0***15)",13,12,null,12.5,"Auto Tech Abbreviated Feedback Template 2024-25.docx","Request 4: Access to entry-level ASE certification examination AND update training for automotive faculty per accreditation standard. $6**000 each year\r"]
["Total (0***15)",11,11,12,11.333333333333334,"Basic Needs Abbreviated Feedback Template 2024-25.docx","Request 1: Retention specialist salary/benefits for class visits and proactive inreach\r"]
["Total (0***15)",7,6,null,6.5,"Basic Needs Abbreviated Feedback Template 2024-25.docx","Request 2: Privacy booth for BNC case management (this plan has been retracted due to fire code construction needs)\r"]
["Total (0***15)",7,7,8,7.333333333333333,"Basic Needs Abbreviated Feedback Template 2024-25.docx","Request 3: Internet splitter setup (for second staff work station)\r"]
["Total (0***15)",11,11,null,11,"Dental Abbreviated Feedback Template 2024-25.docx","Request 1: Instructional Aide\r"]
["Total (0***15)",8,11,4,7.666666666666667,"Dental Abbreviated Feedback Template 2024-25.docx","Request 2: Compressor replacement for original compressor from Measure Q funds in 2008\r"]
["Total (0***15)",8,11,4,7.666666666666667,"Dental Abbreviated Feedback Template 2024-25.docx","Request 3: Vacuum replacement for original vacuum (suction) from Measure Q in 2008\r"]
["Total (0***15)",9,10,null,9.5,"Distance Ed Abbreviated Feedback Template 2024-25.docx","Request 1: rural Student Outreach & Support 9satellite learning support site)\r"]
["Total (0***15)","10","11",null,10.5,"Distance Ed Abbreviated Feedback Template 2024-25.docx","Request 2: AI & Rumi Software\r"]
["Total (0***15)",9,9,null,9,"Distance Ed Abbreviated Feedback Template 2024-25.docx","Request 3: Development\r"]
["Total (0***15)",14,11,null,12.5,"Distance Ed Abbreviated Feedback Template 2024-25.docx","Request 4: Accessibility Capacity Project\r"]
["Total (0***15)",7,11,null,9,"Distance Ed Abbreviated Feedback Template 2024-25.docx","Request 5: Canvas Admin Professional Development\r"]
["Total (0***15)",11,12,11,11.333333333333334,"Fine Arts Abbreviated Feedback Template 2024-25.docx","Request 1: Improve storage infrastructure in the building to make it equivalent to the items that we had in the old creative arts.\r"]
["Total (0***15)",3,6,4,4.333333333333333,"Fine Arts Abbreviated Feedback Template 2024-25.docx","Request 2: Install sound dampening in all art studios.\r"]
["Total (0***15)",3,3,4,3.3333333333333335,"Fine Arts Abbreviated Feedback Template 2024-25.docx","Request 3: Replace the outdated iMac computers in rooms 102** 104**\r"]
["Total (0***15)",3,2,3,2.6666666666666665,"Fine Arts Abbreviated Feedback Template 2024-25.docx","Request 4: Update the Still Life objects and Fabric collection.\r"]
["Total (0***15)",3,2,2,2.3333333333333335,"Fine Arts Abbreviated Feedback Template 2024-25.docx","Request 5: Purchase 1 more doc camera for room 104.\r"]
["Total (0***15)","2","1","1",1.3333333333333333,"Fine Arts Abbreviated Feedback Template 2024-25.docx","Request 6: Purchase and install pegboard for room 102 to better assist\r"]
["Total (0***15)",2,2,2,2,"Fine Arts Abbreviated Feedback Template 2024-25.docx","Request 7: CR Painting and Drawing students need lockers.\r"]
["Total (0***15)",2,2,2,2,"Fine Arts Abbreviated Feedback Template 2024-25.docx","Request 8: Electric kilns\r"]
["Total (0***15)",2,2,3,2.3333333333333335,"Fine Arts Abbreviated Feedback Template 2024-25.docx","Request 9: raku kiln\r"]
["Total (0***15)",2,2,1,1.6666666666666667,"Fine Arts Abbreviated Feedback Template 2024-25.docx","Request 10: Add power drops and additional 220 outlets to the sculpture\r"]
["Total (0***15)",2,1,2,1.6666666666666667,"Fine Arts Abbreviated Feedback Template 2024-25.docx","Request 11: MIG welders are underpowered\r"]
["Total (0***15)",2,1,1,1.3333333333333333,"Fine Arts Abbreviated Feedback Template 2024-25.docx","Request 12: Adding capabilities to cut metal- MillerMatic Spectrum 375\r"]
["Total (0***15)",2,2,2,2,"Fine Arts Abbreviated Feedback Template 2024-25.docx","Request 13: Students in 3D** Art 15** and Art17 need to be able to check out iPads - 5 iPads Pro +Apple Pencils\r"]
["Total (0***15)",12,9,10,10.333333333333334,"FNR Abbreviated Feedback Template 2024-25.docx","Request 1: \r"]
["Total (0***15)",6,6,6,6,"FNR Abbreviated Feedback Template 2024-25.docx","Request 2: \r"]
["Total (0***15)",9,10,9,9.3333333333333339,"FNR Abbreviated Feedback Template 2024-25.docx","Request 3: \r"]
["Total (0***15)","7","9",null,8,"Physical Science Abbreviated Feedback Template 2024-25.docx","Request 1: Mini-freezer + glass ware and thermometers as needed.\r"]
["Total (0***15)","7","9",null,8,"Physical Science Abbreviated Feedback Template 2024-25.docx","Request 2: Lapel microphones (2 or 3)\r"]
["Total (0***15)","7","8",null,7.5,"Physical Science Abbreviated Feedback Template 2024-25.docx","Request 3: Centimeter tape measures\r"]
["Total (0***15)",7,8,null,7.5,"Physical Science Abbreviated Feedback Template 2024-25.docx","Request 4: Klinger X-ray apparatus Mo** complete 554 801** Cu X-ray tube 554 862** LiF crystal for Bragg reflection 554 77** and Compton accessory X-ray 554 836. \r"]
["Total (0***15)",7,8,null,7.5,"Physical Science Abbreviated Feedback Template 2024-25.docx","\u000bRequest 5: Two set ups comprising Pasco's Adiabatic Gas Law Apparatus** Ideal Gal Law Apparatus** and a Replacement Glass Tube \r"]
["Total (0***15)",14,13,14,13.666666666666666,"RN Abbreviated Feedback Template 2024-25.docx","Request 1: Faculty development training to certify as Simulation Specialists (at least one person at each campus)\r"]
["Total (0***15)",6,5,7,6,"RN Abbreviated Feedback Template 2024-25.docx","Request 2: Full-time clinical site scheduler and coordinator\r"]
["Total (0***15)",12,8,9,9.6666666666666661,"RN Abbreviated Feedback Template 2024-25.docx","Request 3: Increase tech from part-time to full-time on both campuses\r"]
["Total (0***15)",9,13,12,11.333333333333334,"RN Abbreviated Feedback Template 2024-25.docx","Request 4: Increase lecture and skills lab space on both campuses\r"]
["Total (0***15)",3,5,3,3.6666666666666665,"WCE Abbreviated Feedback Template 2024-25.docx","Request 1: Assistant Director** ACCE\r"]
["Total (0***15)",9,9,null,9,"Welding Abbreviated Feedback Template 2024-25.docx","Request 1: Additional full-time faculty\r"]
["Total (0***15)",10,10,null,10,"Welding Abbreviated Feedback Template 2024-25.docx","Request 2 - 7: welding cable leads, Torches, and Welder"]
["Total (0***15)",9,10,null,9.5,"Welding Abbreviated Feedback Template 2024-25.docx","Request 8: Jacket and gloves replacement"]
["Total (0***15)",5,5,null,5,"Welding Abbreviated Feedback Template 2024-25.docx","Request 9 - 10: Grinders "]
["Total (0***15)",13,13,null,13,"Welding Abbreviated Feedback Template 2024-25.docx","Request 11 - 14: Various Welders and Fume Extractor"]